{"text_format":"2","workbook":"xlsx","n_sheets":1,"sheets":["Neu 0000-9990"],"not_rendered":{"charts":0,"images":0,"macros":0,"external_links":0,"defined_names":1,"comments":0,"pivot_tables":0},"unopened":[],"bounds":{"document_bytes":16777216,"sheet_cells":100000,"run_cost":"one","rows_first":2000,"rows_last":500,"rows_between":2000,"halvings":0,"cell_chars":16384,"cell_head_chars":4096},"cells_cut":0,"cells_raw":0,"read":"whole","date_system":"1900"}

{"sheet":"Neu 0000-9990","index":0,"n_rows":821,"n_cols":6,"rows_kept":821,"cut":false,"hidden":false,"merged":[]}
["Ordnungs-\nbegriff 5","Kurzbezeichnung","Langbezeichnung DFG","Geräte-\ngruppen-\nschlüssel","Nutzungsdauer\nJahre\nDFG","Nutzungsdauer\nJahre\nUNI"]
[{"$f":"D2&F2","v":""}]
[""]
[""]
["00000700","Messgeräte,mech.","Mess- und Demonstrationsgeräte der Mechanik, z.B. Luftkissenbahnen","0000","7","0700"]
["00100700","Messgeräte Gravitation","Geräte zur Messung der Gravitationskraft (Drehwagen, Pendelgeräte)","0010","7","0700"]
["00201000","Geräte der Mechanik,spez.","Spezielle Geräte der Mechanik, Kreiselgeräte (Kompass)","0020","10","1000"]
["00400300","Luft-u.Körperschallaufn","Luft- und Körperschallaufnehmer,Mikrofone","0040","3","0300"]
["00500500","Raumakustik-Messgeräte","Schallspektrographen und Raumakustik-Messgeräte (Klangspektrographen)","0050","5","0500"]
["00600500","Messgeräte,akustisch","Akustische Mess- und Prüfgeräte mit Zubehör (Geräuschmesser, Lautstärkemesser, Schalldruckmessgeräte, -waagen, Schallpegelmesser)","0060","5","0500"]
["00700500","Schallgeneratoren","Schallgeneratoren und mechanische Schwingungserreger (Eichschallquellen, Mikrofon-Eichgeräte)","0070","5","0500"]
["00800500","Ultraschall-Generatoren","Ultraschall-Generatoren, Schwinger und -Messgeräte","0080","5","0500"]
["00900500","Geräte d.Mechanik,sonst","Sonstige Geräte der Mechanik und Akustik (außer 0000-0080) (Camera Silens, schallabsorbierende Kabine, Gehörschutzgeräte, Gehörprüfkabinen, Schalldämpfer und -Anlagen, Schallschutzgeräte, Schallmesskabinen)","0090","5","0500"]
["01000500","Labormagnete","Labormagnete, Elektromagnete","0100","5","0500"]
["01100500","Magnete,hochstabil","Hochstabile Magnete","0110","5","0500"]
["01200500","Magnete,supraleitend","Supraleitende Labormagnete, Hochfeldmagnete, Magnetspulen","0120","5","0500"]
["01300500","Magnete,spez.","Spezielle Magnete, Schaltmagnete (für Kernphysik)","0130","5","0500"]
["01400500","Magnetfeld-u.-flussmes","Magnetfeld- und -flussmessgeräte (Magnetsonden)","0140","5","0500"]
["01500500","Messgeräte,magnetisch","Geräte zur Messung der magnetischen Materialeigenschaften","0150","5","0500"]
["01601500","Stromversorgung,magnet.","Stromversorgungs- und Steuergeräte für Magnete","0160","15","1500"]
["01900500","Messeinrichtungen,spez.","Spezielle magnetische Mess- und Versuchseinrichtungen","0190","5","0500"]
["02001200","Strahlungsquellen","Strahlungsquellen, Prüfstrahler","0200","12","1200"]
["02101200","Teilchenbeschleuniger","Teilchenbeschleuniger (Physik)(Elektronenbeschleuniger,Kaskadenbeschleuniger)","0210","12","1200"]
["02201200","Teilchenbeschl,Hilfseinr.","Hilfs- und Ergänzungseinrichtungen für Teilchenbeschleuniger","0220","12","1200"]
["02301200","Kernreaktoren","Kernreaktoren","0230","12","1200"]
["02401200","Kernreaktoren,Hilfseinr.","Komponenten, Hilfs- und Ergänzungseinrichtungen für Kernreaktoren (Brennelemente,Kernreaktor-Komponenten,Kernbrennstoffe, -elemente)","0240","12","1200"]
["02601200","Strahlungsmessplätze","Strahlungsmessplätze(Alpha-, Beta-Messplätze,Digitale Strahlungsmessgeräte,Neutronenmessplätze, -flussmesser)","0260","12","1200"]
["02701200","Detektor f.Strahlungsmess","Detektoren für Strahlungsmessung, Kernspurenemulsionen","0270","12","1200"]
["02801200","Blasenkammern","Blasenkammern, Nebelkammern, andere spezielle Messeinrichtungen der Kernphysik","0280","12","1200"]
["03101000","Manipulatoren","Manipulatoren, Fernbedienung für heiße Zellen, Fernbedingung","0310","10","1000"]
["03201500","Strahlenschutz","Strahlenschutz, heiße Zellen (Abschirmeinrichtungen, Bleikammern, Schutzeinrichtungen (Strahlenschutz))","0320","15","1500"]
["03301500","Strahenüberwachung","Strahlenüberwachung, Monitore, Warngeräte","0330","15","1500"]
["03501000","Behälter strahl. Material","Behälter und Anlagen für Transport und Lagerung von strahlendem Material","0350","10","1000"]
["03601000","Gewinnung Kernbrennstoffe","Anlagen zur Gewinnung und Bearbeitung von Kernbrennstoffen, Anreicherungsanlagen","0360","10","1000"]
["03700100","Brennelemente, Entsorgung","Anlagen zur Aufbereitung und Entsorgung von Brennelementen, Abfallbeseitigungsgeräte für radioaktive Laborhilfsmittel, Wiederaufbereitungsanlagen (Kerntechnik)","0370","1","0100"]
["03801000","Dekontaminierungsanlagen","Dekontaminierungsanlagen","0380","10","1000"]
["03901000","Atom-u.Kernphysik so.Ger.","Sonstige Geräte der Atom- und Kernphysik (Isotopengeneratoren, -batterien, Strahlungsmessgeräte-Zubehör)","0390","10","1000"]
["04000400","Erdmagnetische Messgeräte","Erdmagnetische und geoelektrische Messgeräte","0400","4","0400"]
["04100400","Gravimeter u.Gezeitenpen.","Gravimeter und Gezeitenpendel","0410","4","0400"]
["04200400","Seismometer","Seismometer und Geräte für Sprengseismik (Hammerschlag-, Horizontal-Seismometer)","0420","4","0400"]
["04300400","Bodenprobennehmer","Bodenprobennehmer, Erdbohrgeräte (für Bodenproben)","0430","4","0400"]
["04400400","Geräte Erforsch.Erdoberfl","Spezielle Geräte zur Erforschung von Erdoberfläche und Untergrund (außer 0400-0430)","0440","4","0400"]
["04500400","Salinometer-,Thermometer","Salinometer-, Thermometer-, kombinierte Sonden","0450","4","0400"]
["04600800","Meerestiefenmesser","Meerestiefenmesser, Echolote, Sonare, Sonden","0460","8","0800"]
["04701000","Strommessgeräte","Strommessgeräte, Vermess-, Steuerungsgeräte Meeresforschung, Current-Meter","0470","10","1000"]
["04800800","Fahrzeuge Meeresforschung","Spezielle Fahrzeuge und Geräteträger der Meeresforschung (außer Schiffe 240)","0480","8","0800"]
["04900400","Messgeräte ozeanograph.","Ozeanographische Messgeräte und Einrichtungen (außer 0450-0480) (Küstenforschungsgeräte,Wasserforschung, Messgeräte (außer 0450-0480, 0510-0530 und 1000-1990), Wellenhöhen-Messgeräte (Meeresforschung)","0490","4","0400"]
["05000500","Barometer, Barographen","Barometer, Barographen","0500","5","0500"]
["05100500","Hygrometer,Luftfeuchtemes","Hygrometer, Luftfeuchtemesser, Thermohygrographen","0510","5","0500"]
["05200500","Niederschlagsmessgeräte","Niederschlagsmessgeräte, Wasserstandsmessgeräte, Regenmesser","0520","5","0500"]
["05300500","Windmessgeräte","Windmessgeräte, Flügelrad-Anemometer, Winddruck-, -geschwindigkeits-, -richtungsmessgeräte","0530","5","0500"]
["05400500","Sonnenscheinmesser","Sonnenscheinmesser, Gesamtstrahlungsmessgeräte","0540","5","0500"]
["05500500","Sichweitemessgeräte","Sichtweitemessgeräte, Wolkenmesser","0550","5","0500"]
["05600500","Messgeräte f.Luftelektriz","Messgeräte für Luftelektrizität, Elektronendichte","0560","5","0500"]
["05700500","Messgeräte,meteorologisch","Spezielle meteorologische Messgeräte (Wettersonden), Ballon-Wettersonden, Radio-Sonden-Empfänger","0570","5","0500"]
["05800500","Messgeräte,Atmosphäre","Spezielle Messgeräte zur Erforschung der höheren Atmosphäre (Ionosphärenforschungs-Apparaturen)","0580","5","0500"]
["05900500","Meteorolog. Geräte,sonst.","Sonstige meteorologische Geräte und Einrichtungen (Aerometer (Luftgewichts-Messung, Meteorologische Messwarten, Thermometerhütten, Wetterhütten)","0590","5","0500"]
["06000500","Theodoliten,Markscheidege","Theodoliten, Markscheidegeräte","0600","5","0500"]
["06100500","Nivellier-Instrumente","Nivellier-Instrumente","0610","5","0500"]
["06200500","Entfernungsmessgeräte","Entfernungsmessgeräte, Streckenmessgeräte (Geodäsie)","0620","5","0500"]
["06400500","Photogrammetrische Geräte","Photogrammetrische Geräte (außer Messkammern 5450) (Entzerrungsgeräte, Planigraphen, Stereoskope)","0640","5","0500"]
["06500500","Geräte Kartenerstellung","Spezielle Geräte zur Kartenerstellung (Geographische Informationssysteme, Kartenauswertungsgeräte)","0650","5","0500"]
["06600500","Geräte astronom.Vermess.","Spezielle Geräte für astronomische Vermessung, Satellitengeodäsie und Fernerkundung (Bildverarbeitungsgeräte für Fernerkundung (außer 0640), GPS-Systeme (Satellitenvermessung))","0660","5","0500"]
["06700500","Spez.Einricht.Vermesstec","Spezielle Einrichtungen und Aufbauten für Geodäsie und Vermessungstechnik","0670","5","0500"]
["06900500","Geräte Vermessung,sonst.","Sonstige geodätische und topographische Geräte (Bohrloch-Vermessungsgeräte, Lotgeräte, Messlatten, Messtische, Wasserwaagen, Zubehör zu geodätischen Instrumenten)","0690","5","0500"]
[{"$f":"D66&F66","v":"07000800"},"Teleskope","Teleskope (astronomische)(Fernrohre, Spiegelteleskope)","0700","8","0800"]
["07100800","Teleskope,Hilfsger.mech.","Mechanische und elektromechanische Hilfsgeräte für Teleskope, Montierung","0710","8","0800"]
["07200800","Teleskope,Hilfsgeräte,opt","Optische Hilfsgeräte und Zubehör für Teleskope (Astrokameras und Zubehör,Fernrohr-Zubehör)","0720","8","0800"]
["07300800","Teleskope,Hilfsger.elekt.","Elektronische Hilfsgeräte für Teleskope","0730","8","0800"]
["07400800","Radio-Teleskope u.Zub.","Radio-Teleskope und Zubehör (außer 6000-6990)","0740","8","0800"]
["07500800","Geräte Astronomie","Spezielle astronomische Geräte (Ballon-Teleskopie, Satelliteninstrumentierung)","0750","8","0800"]
["07600800","Astronomische Auswerteger","Astronomische Auswertegeräte (Sternphotometer)","0760","8","0800"]
["07900800","Sonst.astronomische Gerä.","Sonstige astronomische Geräte","0790","8","0800"]
["08001500","Mössbauer-Messplätze","Mössbauer-Messplätze (Mössbauer-Antriebe,-Regelungsgeräte,-Funktionen,-Generatoren)","0800","15","1500"]
["08101500","Neutronenspektrometer","Neutronenspektrometer, Neutronenbeugungsanlagen","0810","15","1500"]
["08501400","Höchstdruckpressen","Höchstdruckpressen, Tetraederpressen","0850","14","1400"]
["09001800","Hochenergie-Spektrometer","Hochenergie-Spektrometer (Hadronen-Spektrometer)","0900","18","1800"]
["09101800","Geräte f.Ionenimplantati.","Geräte für Ionenimplantation und Halbleiterdotierung","0910","18","1800"]
["09201800","Atom-u.Molekularstrahlapp","Atom- und Molekularstrahl-Apparaturen","0920","18","1800"]
["09301800","Spezialger.Halbleiterproz","Spezialgeräte der Halbleiterprozesstechnik","0930","18","1800"]
["10001000","Mischer, Rührer, Kneter","Mischer, Rührer, Kneter","1000","10","1000"]
["10101000","Zerkleinerungsgeräte","Zerkleinerungsgeräte, Reib-, Schneide- und Schnitzel-Maschinen","1010","10","1000"]
["10201000","Mühlen","Mühlen","1020","10","1000"]
["10400600","Dispergierer,Zerstäuber","Dispergierer, Zerstäuber, Homogenisatoren","1040","6","0600"]
["10601000","Dilutoren,Pipettiergerä.","Dibutoren, Pipettiergeräte, Probennehmer","1060","10","1000"]
["10701000","Gradientenformer u.-misch","Gradientenformer und -mischer, Dociergeräte","1070","10","1000"]
["10801000","Schüttelgeräte, Rüttler","Schüttelgeräte, Rüttler","1080","10","1000"]
["10901000","Mischen sonst. Geräte","Sonstige Geräte zum Mischen und Zerkleinern (Farbausteibemaschine, Statische Mischgeräte)","1090","10","1000"]
["11003300","Gasentwicklungsgeräte","Gasentwicklungsgeräte, Vergasungsanlagen, (Acetylenentwickler, Gasbehälter, Gasometer (drucklos), Wasserstoff-Entwicklungsgeräte)","1100","20","3300"]
["11100500","Reaktionsgefäße f.Niederd","Reaktionsgefäße für Niederdruck","1110","5","0500"]
["11200500","Reaktionsapparaturen,spez","Spezielle Reaktionsapparaturen (Blitzlicht-, Laser-, Photolyse, Stop-ped Flow)(Blitzlicht-Reaktionsapparaturen, Photolyse-Apparaturen)","1120","5","0500"]
["11300500","Dialysegeräte,chem.","Chemische Dialysegeräte, Diffusionsanlagen (Dialysier-Apparate (Chemie), Elektro-Dialyse-Geräte,Osmose-Geräte)","1130","5","0500"]
["11401000","Adsorptionsanlagen","Adsorptionsanlagen, Wäscher, Trockner","1140","10","1000"]
["11500500","PCR-Prozessoren","PCR-Prozessoren (Polymerase Chain Reaktion)","1150","5","0500"]
["11600500","Syntheseapparaturen, sp.","Synthese-Apparaturen der Biochemie Synthese-Apparaturen (DNA-Synthesizer,Peptid-Synthese-Automaten)","1160","5","0500"]
["11700500","Kristallzüchtungsapparat.","Kristallzüchtungsapparaturen, Kristallisationsanlagen","1170","5","0500"]
["11900500","Chemie,sonst.Ger.präparat","Sonstige Geräte für präparative Chemie (außer 1100-1170)(Katalysatoren, Ozonanlagen)","1190","5","0500"]
["12001000","Laborzentrifugen","Laborzentrifugen (bis 25.000 1/Min)","1200","10","1000"]
["12101000","Ultrazentrifugen","Ultrazentrifugen (über 25.000 1/Min)","1210","10","1000"]
["12201000","Zentrifunge,spez.","Spezielle Zentrifugen (Verfahrens-technik, Medizin)","1220","10","1000"]
["12301000","Sedimentationsanalysatore","Sedimentationsanalysatoren und -waagen","1230","10",1000]
["12400500","Sichter, Abscheider","Sichter, Abscheider, Sedimentieranlagen (außer 1230) (Fliehkraftsichter, -abscheider, Klärgeräte (Sedimentiergeräte), Magnetabscheider)","1240","5","0500"]
["12500800","Siebgeräte","Siebgeräte (Siebe, Ultraschall-Siebgeräte)","1250","8","0800"]
["12601000","Filtriergeräte, Filter","Filtriergeräte, Filter","1260","10","1000"]
["12800800","Flotations-,Schlämmappar.","Flotations-, Schlämmapparate","1280","8","0800"]
["12901000","Zentrifugenzubehör","Zentrifugenzubehör, sonstige Geräte für mechanische Trennverfahren (außer 1230-1280) (Ausschwing-Rotoren, Einfüllvorrichtungen für Zonalrotoren, Scheibenrotoren (für Zentrifugen), Vertikalrotoren)","1290","10","1000"]
["13001000","Destillier-u.Fraktionierg","Destillier- und Fraktioniergeräte, Rektifiziergeräte(Drehbandkolonnen, Quecksilber-Reinigungs-, Destilliergeräte, Reduziergeräte, Wasserdestillationsapparate)","1300","10","1000"]
["13100800","Extraktionsgeräte","Extraktionsgeräte, Verteilungsapparaturen","1310","8","0800"]
["13200500","Eindampfgeräte,Verdampfer","Eindampfgeräte, Verdampfer","1320","5","0500"]
["13300500","Zonenschmelzgeräte","Zonenschmelzgeräte","1330","5","0500"]
["13400500","Gaschromatographen","Gaschromatographen (außer GC-MS-Kopplung)","1340","5","0500"]
["13500500","Flüssigkeitschromatograph","Flüssigkeits-Chromatographen (außer Ionentauscher)","1350","5","0500"]
["13600500","Dünnschicht-,Papier-,Chro","Dünnschicht-, Papier-, Gel-Chromatographen","1360","5","0500"]
["13700500","Radio-Chromatographen","Radio-Chromatographen, Detektoren und Auswertegeräte (Dünnschicht-Scanner, Papierchromatogramm-Scanner, Radio-Chromatogramm-Scanner, Radio-Gaschromatographen)","1370","5","0500"]
["13800500","Zub. Chromatographie","Zubehör zur Chromatographie(Chromatogramm-Spektralphotometer, Chromatographie-Säulen, Dichtegradienten-Fraktionatoren, Elektrochemische Detektoren, Entwicklungskammern, Gasfraktionensammler, Pumpen für Chromatographie UV-Detektoren für Chromatographie, Wärmeleitfähigkeits-Detektoren)","1380","5","0500"]
["13900500","Geräte therm.Trennung,son","Sonstige Geräte zur thermischen Trennung und zur Chromatographie (außer 1300-1380)","1390","5","0500"]
["14001000","Elektrolyseapparate","Elektrolyse-Apparate, -Zellen","1400","10","1000"]
["14101000","Elektrophoresegeräte","Elektrophoresegeräte (analytisch und präparativ)","1410","10","1000"]
["14201000","Elektrofokussierung","Elektrofokussierung, Isotachophoresegeräte","1420","10","1000"]
["14400500","ph-Messgeräte, Inometer","ph-Messgeräte, Inometer (Ionen-Aktivitäts-Messgeräte, Ionensensitive Elektroden (Messgeräte))","1440","5","0500"]
["14500500","Leitfähigkeitsmessgeräte","Leitfähigkeitsmessgeräte","1450","5","0500"]
["14600500","Polarograhen","Polarograhen","1460","5","0500"]
["14700500","Poteniometer","Poteniometer, Geräte für Amperometrie, Voltametrie, Coulometrie  (Coulometer, Galvanostaten, Potentiostaten)","1470","5","0500"]
["14900500","Geräte Elekt.chemie,sonst","Sonstige Geräte der Elektrochemie (außer 1400-1470)","1490","5","0500"]
["15000500","Verbrennungsöfen Makroana","Verbrennungsöfen für Makro- und Mikroanalyse","1500","5","0500"]
["15100500","Elemantaranalysegeräte","Geräte zur Elementarenanalyse (CHN-Analsatoren, Kalkbestimmungsapparate, Kohlenstoffbestimmungs-Apparate, Stickstoff- und Schwefelbestimmungsapparate, Wasserstoffbestimmungsapparate)","1510","5","0500"]
["15200500","Messgeräte für Gase","Messgeräte für Gase (O2, CO2)(Gasanalysegeräte, Gas-Mess-Sensorsysteme, Ozonmessgeräte, Sauerstoffmessgeräte)","1520","5","0500"]
["15300500","Analyseautomaten","Analyseautomaten (außer 1510, 1520 und klinische Chemie 3100-3130)","1530","5","0500"]
["15500500","Messgeräte Sauerstoff","Messgeräte für chemische (COD) und biologische (BSB) Sauerstoffbedarf, Wasseruntersuchungsgeräte(Abwasseruntersuchungsgeräte, -überwachungsanlagen, Grundwasseruntersuchungsgeräte, Labor- (Modell-) Kläranlagen)","1550","5","0500"]
[{"$f":"D130&F130","v":"15600500"},"Luftüberwachungsgeräte","Luftüberwachungs- und -analysegeräte(außer Staub-, Rauch- und Aerosolmessgeräte 1920-1940)","1560","5","0500"]
["15700500","Lebensmittelanalytikger.","Spezielle Geräte für Lebens- und Genussmittel-Analytik","1570","5","0500"]
["15800500","Meßger.Lebensmitteltechno","Mess- und Prüfgeräte für Lebensmitteltechnologie (Farinometer, Milchfettmessgeräte)","1580","5","0500"]
["15900500","Analysegeräte,sonst.","Sonstige Analysegeräte (außer 1500-1580) (Aschegehalt, Aufschlussbomben, Kohlenuntersuchungsgeräte)","1590","5","0500"]
["16000500","Dichtemessgeräte","Dichtemessgerät (Aräometer, Dichtewaagen, Gasdichtemessgerät)","1600","5","0500"]
["16100500","Viskosimeter, Rheometer","Viskosimeter, Rheometer","1610","5","0500"]
["16200500","Penetrometer, Plastometer","Penetrometer, Plastometer (Plastizitätsmessgeräte)","1620","5","0500"]
["16300500","Gerät Molekulargewichtsbe","Geräte zur Molekulargewichtsbestimmung (Dampfdruck-Osmometer, Ebullioskope, Osmometer)","1630","5","0500"]
["16400500","Porositätsmeßgeräte","Porositäts- und Oberflächenmessgeräte","1640","5","0500"]
["16500500","Oberflächen-Spannungsmess","Oberflächen-Spannungsmesser(Filmwaagen (Langmuir-Tröge), Tensiometer (Oberflächenspannung))","1650","5","0500"]
["16600500","DK-Messgeräte (Dekameter)","DK-Messgeräte (Dekameter)","1660","5","0500"]
["16900500","Geräte Messung Stoffkonst","Geräte zur Messung von Stoffkonstanten (außer 2900-2990), thermische Werte 8640-8690) Dampfdruckmessgeräte (außer 1630)","1690","5","0500"]
["17000500","Massenspektrometer","Massenspektrometer","1700","5","0500"]
["17100500","Partialdruckmassenspektr","Partialdruck-, Restgas-Massenspektrometer (Massenfilter, Partialdruckanalysatoren, Restgasanalysatoren)","1710","5","0500"]
["17200500","Massenspektrometer,spez.","Spezielle Massenspektrometer (Flugzeit-, Cyclotronresonanz-, Ionensonden, SIMS, außer 3060)","1720","5","0500"]
["17400500","Kernresonanzspektrometer","Hochauflösende NMR-Spektrometer","1740","5","0500"]
["17410500","Festkörper-NMR-Spektromet","Festkörper-NMR-Spektrometer","1741","5","0500"]
["17420500","NMR-Spektrometer Imaging","NMR-Spektrometer für Imaging-Anwendung (außer 3231)","1742","5","0500"]
["17600500","Kernquadrupolresonanz-Spe","Kernquadrupolresonanz-Spektrometer (NQR)","1760","5","0500"]
["17700500","Elektronenspinresonanz-Sp","Elektronenspinresonanz-Spektrometer (EPR, ESR) ENDOR-Geräte (Electron-Nuclear-Double-Resonance)","1770","5","0500"]
["17800500","Photoelektronenspektromet","Photoelektronenspektrometer (UPS und XPS)","1780","5","0500"]
["17900500","Spektrometer","Spektrometer (Massen-, NMR-, außer 1700-1780)(Baugruppen und Zubehör für Spektrometer, Mikrowellen-Spektrometer, Zylinderkondensatoren für Massen- und Elektronenspektrometer)","1790","5","0500"]
["18100800","Atomabsorptionsspektropho","Atomabsorptions-Spektrophotometer und Spezialzubehör (AAS)(AAS-Spektrometer, Graphitrohrküvetten (Atomabsorption) und Netzanschlussgeräte, Massmann-Küvetten)","1810","8","0800"]
["18110800","Emissions-Spektrometer","Emissions-Spektrometer (Funken-Emissionsspektrometer, ICP-Systeme (Plasma-Emission))","1811","8","0800"]
["18302000","Fourier-Transform-IR-Spek","Fourier-Transform-IR-Spektrometer","1830","20","2000"]
["18402000","Raman-Spektrometer","Raman-Spektrometer","1840","20","2000"]
["18502000","Spektralfluorometer","Spektralfluorometer, Lumineszenz-Spektrometer (außer Filterfluorometer 5220)","1850","20","2000"]
["18602000","Spektrographen,spez.","Spezielle Spektrographen und Spektrometer(Blitzlicht-Spektrometer, Dreiprismenspektrographen, Laser-Mikrosonden, Spektrometer (spezielle optische), Temperatursprung-Spektrometer)","1860","20","2000"]
["18702000","Vielkanalspektrographen,o","Optische Vielkanalspektrographen","1870","20","2000"]
["18802000","optische Spektrometer,Zub","Auswertegeräte, Zubehör und Bauelemete für optische Spektrometer(Anregungsgeräte (Spektrographie), Brenner für Atomabsorptions- und Emissionsspektrophotometer, Funkenerzeuger, IR-Polarisatoren, Photometerkugeln, Ulbricht-Kugeln, Spektren-Auswertegeräte, Spektren-Rechengeräte, Zubehör für Spektrometer (außer Küvetten 5280)","1880","20","2000"]
["18902000","Spektrometer,opt.","Optische Spektrometer (außer 1800-1860)","1890","20","2000"]
["19000500","Titriergeräte","Titriergeräte, -stände(Büretten (außer 1070), Motorbüretten)","1900","5","0500"]
["19100800","Wassergehaltsmessgeräte","Wassergehaltsmessgeräte(Feuchtigkeitsmessgeräte (außer Luft- (0510) und Bodenfeuchte (4430) -Messung), Karl-Fischer-Wasserbestimmungsgeräte)","1910","8","0800"]
["19201500","Durchfluss-u.Mengenmesser","Durchfluss- und Mengenmesser (außer für Blut 3010)(Gasuhren, Massendurchflussmesser, Wasseruhren, Wasserzähler)","1920","15","1500"]
["19300800","Staubmessgeräte","Staubmessgeräte (Aerosol-, Staub-Sammler, Impaktoren Luftkeim-Untersuchungs- und -Überwachungsgeräte, Staubsammelgeräte)","1930","8","0800"]
["19400800","Rauchmessgeräte","Rauchmess- und -überwachungsgeräte","1940","8","0800"]
["19500800","Partikelzählgeräte","Partikelzählgeräte und -klassiergeräte (optisch, elektronisch, außer 3500)(Aerosol- (Size-) Analysatoren, Korngröße-Analysatoren (optisch, Elektro-nisch, außer 1240, 1250 und 7430) Spektralteilchenzähler (Aerosol-Analyse),Teilchengröße-Analysatoren (außer 1240, 1250 und 7430)","1950","8","0800"]
["19701200","Wasseraufbereitungsgeräte","Wasseraufbereitungsgeräte, Abwasserreinigungsanlagen(Entkeimungsanlagen für Wasser, Entsalzungsanlagen für Wasser, Entsilberungsgeräte, Wasserenthärtungsanlagen, Wasserreinigungsgeräte (außer Destillationsgeräte 1300)","1970","12","1200"]
["19801000","Pressen Labor-Verfahrtec","Pressen und Labor- und Verfahrenstechnik (Granuliermaschinen, Hydraulische Laborpressen, Tablettenpressen)","1980","10","1000"]
["19901300","Geräte sonst.chem.Betrieb","Sonstige Geräte der chemischen Betriebstechnik Tablettenprüfgeräte (Bruchfestigkeit, Auflösbarkeit)","1990","13","1300"]
["20000500","Drehmaschinen","Drehmaschinen (Drehbänke, Drehautomaten (NC und CNC), Numerisch gesteuerte Dreh-maschinen)","2000","5","0500"]
["20100800","Hobel- und Stoßmaschinen","Hobel- und Stoßmaschinen","2010","8","0800"]
["20201000","Bohrmaschinen","Bohrmaschinen (spanend)(Bohrwerke (außer Bohrgeräte für Tiefbau, Bergbau 2390), Handbohrmaschinen, Ständer-Bohrmaschinen)","2020","10","1000"]
["20300800","Fräsmaschinen","Fräsmaschinen (Numerisch gesteuerte (NC) Werkzeugmaschinen, Fräs- und Bohrwerke, Universalfräsmaschinen)","2030","8","0800"]
["20400600","Schleifmaschinen","Schleifmaschinen (Glasschleifmaschinen, Handschleifmaschinen, Rundschleifmaschinen, Werkzeugschleifmaschinen)","2040","6","0600"]
["20500800","Trennmaschinen","Trennmaschinen (Sägen, Scheren)(Bandsäge, Kettensägen, Kreissägen, Handkreissägen, Scheren für Metalle,Steinsägen, Stichsägen, Trennschleifmaschinen)","2050","8","0800"]
["20600600","Werkzeugmasch.spanend,spe","Spezielle spanende Werkzeugmaschinen (Feilmaschinen, Gewindeschneidmaschinen, -schälmaschinen, Graviermaschinen (außer rechnergesteuert 7450))","2060","6","0600"]
["20700800","Werkzeugmaschinen Hilfsge","Hilfsgeräte und Messeinrichtungen für Werkzeugmaschinen (Anreiß- und Messplatten, Hydraulik-Zylinder, -Spann- und Vorschubeinrichtungen, Markierungsgeräte, Beschriftungsgeräte für Metall, Maschinenschraubstöcke, Modelle (Fertigungstechnik und Gießerei), Spanneinrichtungen, Werkzeugmaschinenzubehör)","2070","8","0800"]
["20900800","Werkzeugmaschinen spanend","Werkzeugmaschinen, spanend (außer 2000-2070)(Biegsame Wellen, Schleif- und Fräsmotoren, Universal-Werkstattgeräte)","2090","8","0800"]
["21000700","Gießanlagen","Gießanlagen (Spritzguß, Strangguß)","2100","7","0700"]
["21100300","Formmaschinen","Maschinen zur Formen- und Modellherstellung und gießereitechnische Maschinen (Formkästen (Gießerei), Formschablonen (Gießerei), Stereo-Lithographie-Systeme)","2110","3","0300"]
["21200800","Walzmaschinen,Hammerwerke","Walzmaschinen, Hammerwerke und Schmiedepressen","2120","8","0800"]
["21300800","Pressen und Maschinen","Pressen und Maschinen zum Biegen, Drücken, Stanzen, Prägen, Ziehen (Abkantpressen, Draht-Ziehmaschinen, Federbiege, -wickelmaschinen, Richtmaschinen, Stanzen, Pressen)","2130","8","0800"]
["21400800","Maschinen Umformung","Maschinen und Einrichtungen für spezielle Umformverfahren (Explosionsumformungsgeräte)","2140","8","0800"]
["21500700","Schweißmaschinen","Schweißmaschinen und Brennschneidemaschinen (Autogen-Schweißgeräte, Elektro-, Lichtbogen-Schweißgeräte (außer 2620), Metall-Spritzgeräte (Oberflächen-Auftrag), Punktschweißmaschinen)","2150","7","0700"]
["21600800","Lötmaschinen","Lötmaschinen, Lötbäder, Kontaktiergeräte","2160","8","0800"]
["21700500","Chemische Sägen","Chemische Sägen, Elektrolyse-Ätz-Maschinen, Funkenerosionsgeräte","2170","5","0500"]
["21800500","Maschinen Oberfläch.behan","Maschinen für Oberflächenbehandlung (Elektropolieren, Galvanisieren, Lackieren, Sandstrahlen)(Beizgeräte, Beschichtungsgeräte, Eloxiergeräte, Farbspritzgeräte, Imprägniergeräte, Lackiergeräte, Laminatoren)","2180","5","0500"]
["21900800","Werkzeugmaschinen spanlos","Werkzeugmaschinen, spanlos, und andere Bearbeitungsmaschinen (außer 2100 - 2170) (Bestückungsmaschinen für Leiterplattenfertigung, Draht-Wickelmaschinen, Kraftschrauber, Schlagschrauber, Nietmaschinen, Niethämmer)","2190","8","0800"]
["22000600","Kunststoffextruder","Kunststoffextruder und -blasmaschinen (Extruder für Kunststoffe, Folienblasmaschinen, Profilpressen für Kunststoffe)","2200","6","0600"]
["22101300","Kunststoffpressen","Kunststoffpressen und -spritzgußgeräte (Formspritzmaschinen für Kunststoffe, Pressen für Kunststoffteile)","2210","13","1300"]
["22200500","Glasbearbeitungsmaschinen","Glasbearbeitungsmaschinen (Glasblasgeräte, Glasschmelzöfen, Glaspressen)","2220","5","0500"]
["22301000","Textilmaschinen","Textilmaschinen (Färbegeräte (Labor-) für Textilien,Nähmaschinen (Industrielle), Spinnmaschinen, Textil-Zuschnitt-Maschinen (CNC))","2230","10","1000"]
["22401000","Masch.Holz-u.Papierverarb","Maschinen für Holz- und Papierverarbeitung (Funiermaschinen, -pressen, Holzverarbeitungsmaschinen (außer 2000-2050), Papierverarbeitungsmaschinen (außer 2260))","2240","10","1000"]
[{"$f":"D194&F194","v":"22500300"},"Setzmaschinen","Setzmaschinen, Klischiergeräte und reproduktionstechnische Geräte (außer Kameras) (Composer (Setzmaschinen), Farbscanner (Reproduktionstechnik))","2250","3","0300"]
["22600800","Druckereimaschinen","Druckmaschinen und Druckerei Hilfsgeräte (Buchbindermaschinen, Handstanzen (Papier), Off-Set-Druckmaschinen, Pressen (Druckerei), Schneidemaschinen (Papier))","2260","8","0800"]
["22700800","Bearb.masch. keram Werkst","Spezielle Bearbeitungsmaschinen für keramische Werkstoffe, Gummi, Leder (Gerbereigeräte, Vulkanisiergeräte)","2270","8","0800"]
["22900700","Bearb.masch,n.metal.Werk.","Sonstige Bearbeitungsmaschinen für nichtmetallische Werkstoffe (Kalander, Laborkalander, Klebemaschinen, Schweißmaschinen (Ultraschall) für Kunststoffe)","2290","7","0700"]
["23000600","Baustoffmaschinen","Baustoffmaschinen","2300","6","0600"]
["23101500","Personen-u.Lastenaufzüge","Personen- und Lastenaufzüge","2310","15","1500"]
["23200800","Verladeeinrichtungen","Greif- und Hebewerkzeuge, Verladeeinrichtungen (Baukräne, Flaschenzüge, Flexible Fertigungs- und Montage-Systeme, Industrie-Roboter, Handhabungsgeräte, Seilwinden)","2320","8","0800"]
["23300700","Gurt-u.Gliederförderanlag","Gurt- und Gliederförderanlagen (Fließbänder, Transportbänder und -anlagen)","2330","7","0700"]
["23401200","Förderanlagen","Förderanlagen (außer Gurt- und Gliederförderanlagen)(Förderschnecken, Pipelines, Rohrleitungen und Zubehör, Transport- und Fördereinrichtungen (außer 2330))","2340","12","1200"]
["23500800","Räumgeräte,Bagger,Raupen","Räumgeräte, Bagger, Raupen, Lader","2350","8","0800"]
["23601000","Geräte für Bergbau","Geräte und Versuchseinrichtungen für Bergbau und Lagerstättenforschung","2360","10","1000"]
["23700400","Masch.Baustoffherst.-bear","Spezielle Maschinen für Baustoffherstellung und -bearbeitung (Planierwalzen, Rüttelverdichter, Stampfer, Straßenwalzen)","2370","4","0400"]
["23801300","Abfüllmaschinen","Abfüll-, Verpackungs-, Verschließmaschinen","2380","13","1300"]
["23900300","Baumaschinen,sonst.","Sonstige Baumaschinen und -hilfsgeräte (Abbruchhämmer, Bohrgeräte für Tiefbau, Bergbau, Ölförderung, Bohrkronen, Gleisbaumaschinen, Hämmer, Elektro- und Presslufthämmer, Wasserstrahl-Hochdruckgeräte)","2390","3","0300"]
["24001200","Schiffe, Boote","Schiffe, Boote","2400","12","1200"]
["24101200","Flugzeuge","Flugzeuge","2410","12","1200"]
["24201200","Windkanäle","Windkanäle (Stoß-Wellenrohre)","2420","12",1200]
["24305000","Wasserkanäle","Wasserkanäle, Versuchsgerinne","2430","50","5000"]
["24400300","Messger.Wind-Wasserkanäle","Hilfseinrichtungen und spezielle Messgeräte für Wind- und Wasserkanäle und Anlagen des Wasserbaus (Betz-Manometer, Messflügel, Schwimmflügel (Strömungsmessung in offenen Gerinnen), Schleppwagen (Wasserkanal), Strömungsdruckmesser, Winderzeuger, Windkanal-Instrumentierung)","2440","3","0300"]
["24500300","Kavitations-Messeinrichtg","Kavitations-Messeinrichtungen (Kavitations-Tanks, -Tunnel)","2450","3","0300"]
["24600800","Navigatins-u.Messgeräte","Navigations- und Messgeräte für Schiffe und Flugzeuge (Bewegungssimulatoren, Flugsimulatoren, Höhenmesser (elektronisch für Flugzeuge), Navigationssysteme,Radar-Simulatoren (für Ausbildung),XY-Prüftische für Kreisel- und Plattformvermessung)","2460","8","0800"]
["24700300","Geräte Raketentechnik","Spezielle Geräte der Raketentechnik und Ballistik","2470","3","0300"]
["24900500","Luft-u.Wasserfahrzeuge","Sonstige Luft- und Wasserfahrzeuge und Zubehör (Ballone (Luft-), Fessel-Ballone, Bojen, Tonnen, schwimmende Verkehrszeichen, Fallschirme, Flugzeug- und Schiffs-Zubehör, Luftschiffe, Pontons, Schwimmer, Rettungsboote, -flöße, -inseln, Schwimmwesten)","2490","5","0500"]
["25000500","Personenkraftwagen","Personen-Kraftwagen, Omnibusse,Kombiwagen","2500","5","0500"]
["25100900","Lastkraftwagen","Lastkraftwagen","2510","9","0900"]
["25200300","Kraftfahrzeuge,spez.","Spezielle Kraftfahrzeuge (Zugmaschinen, Feuerwehrfahrzeuge, Krankenwagen, Beton-Transportfahrzeuge, Geländekraftwagen, Gleiskettenfahrzeuge, Mess- und Laborkraftwagen, Messfahrzeuge, Tankwagen (LKW))","2520","3","0300"]
["25300600","Anhänger f.Kraftfahrzeuge","Anhänger für Kraftfahrzeuge","2530","6","0600"]
["25400800","Flurförderfahrzeuge","Flurförderfahrzeuge (Elektrokarren, Gabelstapler, Hebefahrzeuge, Hubwagen (motorgetrieben)","2540","8","0800"]
["25500600","Krafträder,Fahrräder","Krafträder, Fahrräder, Behinderten-Fahrzeuge","2550","6","0600"]
["25600800","Prüfstände Fahrzeuge","Prüfstände für Fahrzeuge und Aggregate (außer Motorenprüfstände 286)(Achsvermessungsgeräte, Bremsprüfstände, Lichtmaschinen- und Anlasser-Prüfstände, Reifenprüfstände)","2560","8","0800"]
["25700500","Messgerät Schienenfahrzg","Messgeräte für Schienenfahrzeuge und Gleise","2570","5","0500"]
["25800800","Zubehör u.Aggregate f.Kfz","Zubehör und Aggregate für Kraftfahrzeuge(Fahrschuleinrichtung und -geräte, Fahrsimulatoren, Fahrstände für Straßen- und Schienenfahrzeuge)","2580","8","0800"]
["25900700","Straßenfahrzeuge,sonstige","Sonstige Straßen- und Schienenfahrzeuge, Feldbahnen","2590","7","0700"]
["26001000","Elektromotoren","Elektromotoren","2600","10","1000"]
["26101900","Generatoren u.rotier.Umfo","Generatoren und rotierende Umformer (Drehstromumformer, Dynamomaschinen, Gleichstrom-Umformer (rotierend))","2610","19","1900"]
["26202000","Transformatoren, Drosseln","Transformatoren, Drosseln","2620","20","2000"]
["26301900","Stromrichter u.Leistungse","Stromrichter und Leistungselektronik (Energieübertragung, Antrieb)(Elektrische Pulseinrichter, Hoch-spannungsgleichrichter, Wechselrichter (für Hochspannungsanlagen, Motorantriebe))","2630","19","1900"]
["26402000","Leistungskondensatoren","Leistungskondensatoren, Phasenschieber(Hochspannungskondensatoren, Impulskondensatoren, Kondensatorbänke)","2640","20","2000"]
["26501200","Steuergeräe el.Maschinen","Steuer-, Schutzgeräte für elektrische Maschinen und Anlagen (außer 2630)(Transformatoren-Zubehör, -Schutz und -Überwachungsgeräte, Überspannungsableiter)","2650","12","1200"]
["26600500","Netzmodelle,Modellanlagen","Netzmodelle und Modellanlagen (Modelle und Versuchsanlagen für elektromotorische Antriebe)","2660","5","0500"]
["26702000","Energieübertragung,Geräte","Spezielle Geräte der elektrischen Energieübertragung; Kabel, Leitungen, Schalter, Schaltfelder (Schalttafeln, Verteiler)","2670","20","2000"]
["26800800","Hochspannungslabor,sp.Ger","Spezielle Geräte für Hochspannungs- und Hochstromlaboratorien (Hochspannungsbaukästen, Hochspannungsisolatoren)","2680","8","0800"]
["26901500","Energietechnik,sonst.Ger","Sonstige Geräte der Elektrischen Energietechnik (Erdungsgeräte, Hochspannungsschutz)","2690","15","1500"]
["27000500","Nachrichtechn.Leitungen","Spezielle Leitungen und Kabel der Nachrichtentechnik (Glasfaserkabel, Optische Kabel, Übertragungssysteme und Modellanlagen der Nachrichtentechnik (außer 6600-6650))","2700","5","0500"]
["27100500","Reflexionsmessgeräte","Reflexions- und Anpassungsmessgeräte, Laufzeit-Messgeräte (Fehlortungsgeräte, Impulsreflektometer, Messleitungen)","2710","5","0500"]
["27200500","Impedanzmessgeräte","Impedanz- und Dämpfungsmessgeräte, Frequenzgangmessgeräte, Netzwerkanalysatoren (Antennen-Impedanzmeter, Eichleitungen, Pegelschreiber (Nachrichtentechnik)","2720","5","0500"]
["27300500","Modulatoren,sonst.Messger","Modulatoren, Frequenzhub- und -modulationsmessgeräte","2730","5","0500"]
["27400500","Messgeräte,Fernschreibtec","Spezielle Messgeräte für Fernschreib- und Datentechnik (außer Messautomaten und Logikprüfgeräte 7330)(Datentester, Impulsmessgeräte für Fernschreib- und Datentechnik (außer Oszilloskope), Phasenverzerrungs-Messgeräte (Fernschreib- und Datentechnik))","2740","5","0500"]
["27500500","Messgeräte,Funktechnik","Spezielle Messgeräte der Fernsprech-, Funk- und Tonstudiotechnik (außer Fernsehtechnik) (Geräuschspannungsmessgeräte, Richtfunkmessplätze, Störwerterfassungsgeräte)","2750","5","0500"]
["27600500","Messgeräte,Fernsehtechnik","Spezielle Messgeräte der Fernseh-technik(Bildmuster-Generatoren, Video-Prüfsignal-, Prüfzeile-Generatoren)","2760","5","0500"]
["27700500","Störschutzgeräte","Störschutzgeräte und -anlagen, Faraday-Käfige(Abgeschirmte Räume (elektromagnetisch), Entstörgeräte)","2770","5","0500"]
["27800500","Mess-Prüfgeräte Halbleit.","Spezielle Mess- und Prüfgeräte für Halbleiter und Röhren (außer 6200-6590)(Sondenmessplätze (Wafer Prober) für Halbleiterbausteinen,  Transistor-, Röhrenprüfgeräte)","2780","5","0500"]
["27900500","Nachrichtentechn.Geräte,s","Sonstige nachrichtentechnische Geräte (außer 2700-2780 und 6600-6790)","2790","5","0500"]
["28000800","Verbrennungsmotoren","Verbrennungsmotoren","2800","8","0800"]
["28101500","Dampfmaschinen u.-turbin.","Dampfmaschinen und -turbinen (Kolbendampfmaschinen (außer Verdichter 8010)","2810","15","1500"]
["28200800","Pressluft-u.Hydromotoren","Pressluft- und Hydromotoren (Wassermotoren)","2820","8","0800"]
["28301000","Wasserturbinen u.Hilfsein","Wasserturbinen und Hilfseinrichtungen (Ölturbinen, Wasserräder)","2830","10","1000"]
["28401000","Gasturbinen,Strahltriebw.","Gasturbinen, Strahltriebwerke, Raketentriebwerke (Expansionsturbinen (Gasverflüssiger), Turbinen für Gas, Pressluft)","2840","10","1000"]
["28500500","Getriebe u.spez.Maschinen","Getriebe und spezielle Maschinenteile (Antrieb, Bremsen, Hydraulische Getriebe)","2850","5","0500"]
["28600800","Motoren-u.Getriebeprüfstä","Motoren- und Getriebeprüfstände, Verdichterprüfstände (Abgasmesseinrichtungen, Leistungsmessanlagen für Motoren, Leistungsbremsen, Motorprüfgeräte, -tester, Turbinenprüfstände)","2860","8","0800"]
["28701500","Dampferzeuger-,Kesselanl.","Dampferzeuger-, Kesselanlagen für Turbinen und Dampfmaschinen","2870","15","1500"]
["28801000","Entgiftungs-u.Entstaub.an","Entgiftungs- und Entstaubungsanlagen (Abgas-Entgiftungs-, Reingungsanlagen, Elektrofilter (Staubfilter))","2880","10","1000"]
["28901000","Motoren+Kraftmaschinen","Sonstige Motoren und Kraftmaschinen (Ionen-Triebwerke, Windkraftmaschinen, Triebwerke, sonstige außer 2800-2840)","2890","10","1000"]
["29000600","Statische Prüfmaschinen","Statische und Quasistatische Prüfmaschinen und -anlagen,Biegemaschinen (Festigkeitsprüfung) (Druckfestigkeitsprüfmaschinen, Zugfestigkeitsmesser)","2900","6","0600"]
[{"$f":"D258&F258","v":"29100600"},"Dynamische Prüfmaschinen ","Dynamische Prüfmaschinen und -anlagen, Pulser(Federprüfmaschinen, Prüfgerüste (mit hydraulischen Zylindern), Torsionsmaschinen (Prüfmaschinen)","2910","6","0600"]
["29200600","Schlagprüfmaschinen","Schlagprüfmaschinen, Vibrations- und Beschleunigungs-Prüfanlagen(Katapultanlagen für Aufpralltests,Rütteltische (Werkstoff-Prüfung), Schwingungs-Prüfstände und -Anlagen, Schockprüfanlagen)","2920","6","0600"]
["29300600","Härteprüfmaschinen","Härteprüfmaschinen, Reibungs- und Verschleiß-Prüfmaschinen","2930","6","0600"]
["29400600","Spez.Baustoffprüfgeräte","Spezielle Baustoff- und Bodenprüfgeräte, Schergeräte (Bitumen-Prüfgeräte außer 1610 und 1620, Gipsprüfmaschinen, Oedometer (Bodenprüfgeräte)","2940","6","0600"]
["29500600","Prüfmaschinen,Holz u.Pap.","Spezielle Prüfmaschinen für Holz und Papier(Zellstoffprüfapparate)","2950","6","0600"]
["29600600","Prüfmaschinen,Textilien","Spezielle Prüfmaschinen für Textilien (Fadenstruktur-Analysegeräte, Faserfestigkeits-Messgeräte, Spinnprüfmaschinen)","2960","6","0600"]
["29700600","Prüfmaschinen,Kunststoffe","Spezielle Prüfmaschinen für Kunststoffe, Gummi, Leder und Lack(Lack- und Farbenprüfgeräte außer 4130)","2970","6","0600"]
["29800600","Prüfkammern","Prüfkammern (Klima, Vakuum, Vibration) und Korrosionsprüfgeräte(Klimaprüfkammern für Materialprüfung, Vakuumprüfkammern)","2980","6","0600"]
["29900600","Werkstoffprüfmasch.,sonst","Sonstige Werkstoff-Prüfmaschinen und Zubehör außer 2900-2980 und 4100-4190 (Dynamisch-Mechanische Spektrometer, Glasurspannungsmesser, Materialprüfgerätezubehör)","2990","6","0600"]
["30000500","Blutdruckmessgeräte","Blutdruckmessgeräte und Sphygmographen(Elektromanometer (Blutdruckmessung), Gefäßdruckmessgeräte, Herz-Katheter, Herz-Katheter-Messplätze (außer Röntgeneinrichtungen 3120)","3000","5","0500"]
["30100500","Blutdruckflussmessgeräte","Blutdruckflussmessgeräte (Blutströmungsmessgeräte (Flowmeter), Durchblutungsmessgeräte, Rhe-ographie-Geräte, Elektrorheographie-, Direktrheographiegeräte)","3010","5","0500"]
["30200500","Pulsfrequenz-Meßgeräte","Pulsfrequenz- und Herzleistungs-Messgeräte (Herzzeitvolumen- (HZV) Messgeräte, -Rechner, Herzfrequenz-Messgeräte, Kardiotographen)","3020","5","0500"]
["30300800","Herzsteuereräte","Herzsteuer- und -überwachungsgeräte (Defibrillatoren, Herzschrittmacher, -stimulatoren)","3030","8","0800"]
["30400500","Ergometer","Ergometer (Belastungsprüfung, Messplätze (Ergometer),Fahrrad-Ergometer, Laufband-Ergometer, Physiologie-Messeinrichtungen für Kreislauf und Leistung)","3040","5","0500"]
["30500500","Lungenfunktionsmessgeräte","Lungenfunktionsmessgeräte (Atemfrequenz-Messgeräte, Spirometer, Spirometrie-Messplätze)","3050","5","0500"]
["30600500","Atemgasanalysatoren","Atemgas- und Blutgas-Analysatoren (Diaferometer (Grundumsatzbestimmung), Gasanalysatoren für Physiologie, Respirometer (außer Gaswechsel-Messeinrichtungen 4410)","3060","5","0500"]
["30800500","Intensivpflegesysteme","Intensivpflege- und Patientenüberwachungssysteme (Notarztkoffer, Notfallwagen (mit EKG-Monitor, Defibrillator, Patienten-Monitoring-Systeme)","3080","5","0500"]
["30900800","Kreislaufmessgeräte,sonst","Sonstige Kreislauf-Mess- und -Überwachungsgeräte (Patienten-Simulatoren)","3090","8","0800"]
["31000500","Immunochemische Messgerät","Immunochemische Bestimmungsgeräte (außer Immunelektrophorese 1410)(Enzym-Messplätze, -Rechner (außer Photometer 5200), Mecroplate-Reader, Radio-Immunoassay-Messplätze ","3100","5","0500"]
["31100500","Serumanalysengeräte","Serumanalysengeräte für Elektrolyt- und Substrat-Konzentration (außer 1510, 1520 und 5200-5220) (Elektrolytautomaten, -analysatoren (Klinische Chemie), Glucoseanalysatoren (chromatographische Zuckeranalysatoren s. 1530), Harnstoff-N-Analysatoren, Lactat-Analysatoren)","3110","5","0500"]
["31200500","MehrkanalAnalysenautomat","Mehrkanal-Analysenautomaten für Klinische Chemie","3120","5","0500"]
["31300500","Blutanalysegeräte","Blutanalyse- und -differenziergeräte (Blutzellenmessgeräte, Blutkörperchenzähler, Blutgruppen-Bestimmungsgeräte, Blutbild-Differenziergeräte, -Differentialzähler, Blutuntersuchungsgeräte (außer Zentrifugen 1200 und 3100-3120)","3130","5","0500"]
["31400500","Blutkonservierungsgeräte","Blutkonservierungs- und -aufbereitungsgeräte","3140","5","0500"]
["31500500","DNA-Sequenzer ","DNA-Sequenzer(Sequenzanalysatoren (DNA-Nucleotid-)","3150","5","0500"]
["31600500","Biomolekular-Interaktions","Biomolekular-Interaktionssysteme","3160","5","0500"]
["31700500","DNA-Array-Systeme ","DNA-Array-Systeme (DANN-Chip-Systeme)","3170","5","0500"]
["31800500","Peptid-,Protein-Sequenzer","Peptid-, Protein-Sequenzer (Sequenzanalysatoren (Peptid-, Protein-)","3180","5","0500"]
["31900500","Klein.Chemie,sonst.Geräte","Sonstige Geräte der Klinischen Chemie und Molekularbiologie (Hämatologische Messgeräte (außer 3000-3060 und 3100-3180)","3190","5","0500"]
["32000800","Röntgendiagnostikgeräte","Röntgendiagnostikgeräte (außer Angiographie 3210 und Tomographie 3230) (Digitale Röntgenanlagen (außer Angiographie 3210), Lungendiagnostik-Röntgengeräte, Röntgengeneratoren (Medizin), Unfallaufnahme-Arbeitsplätze (Röntgen)","3200","8","0800"]
["32100800","Angiographie-Röntgenanla.","Angiographie-Röntgenanlagen (Digital-Subtraktions-Röntgensysteme (DSA-Anlagen), Koronarographie-Röntgeneinrichtungen, Röntgenarbeitsplätze für Angiographie, Venographie, Lyphographie)","3210","8","0800"]
["32200800","Röntgenzubehör,mediz.","Hilfseinrichtungen und medizinisches Röntgenzubehör (Hochdruck-Spritzen für Röntgen-Kontrastmittel,Stative für Röntgengeräte,Tageslicht-Entwicklungsmaschinen)","3220","8","0800"]
["3230/10800","Tomographiegeräte","Tomographie- und Schichtgeräte (Röntgen- und MR-)","3230/1","8","0800"]
["32300800","Computertomographen","Computertomographen","3230","8","0800"]
["32310800","Kernspintomographen","Kernspintomographen","3231","8","0800"]
["32400500","Therapiesimulatoren","Therapiesimulatoren, Dosisprogrammiergeräte (Bestrahlungsplanungs-Systeme)","3240","5","0500"]
["32500800","Beschleuniger","Beschleuniger (Medizin)(Linearbeschleuniger (Medizin), Neutronengeneratoren (Medizin), Röntgentherapiegeräte)","3250","8","0800"]
["32600800","Bestrahlungsgerä.,mediz.","Strahler und Bestrahlungsgeräte für Medizin/Biologie (außer Beschleuni-ger 3250)","3260","8","0800"]
["32701000","Aufnahmegeräte,mediz.","Aufnahme- und Archivierungsgeräte für medizinische Röntgentechnik(Betrachtungsgeräte für Röntgenaufnahmen, Bildaufnahmegeräte für Radiologie, Laser-Imager für Röntgen-aufnehmen (Medizin)","3270","10","1000"]
["32800800","Strahlenschutzeinrichtung","Strahlenschutzeinrichtungen für Röntgen- und Beschleunigeranlagen der Medizin (außer 0320)(Abschirmeinrichtungen)","3280","8","0800"]
["32900800","Radiologie,Geräte,sonst.","Sonstige Geräte der Radiologie und Zubehör(Knochendichte-Messsysteme, Oste-oporose-Diagnostik-Systeme, Strah-lentherapiegeräte (außer Teilchenbe-schleuniger 3250 und Radioisotope 3260)","3290","8","0800"]
["33000500","Radionuklid-Messplätze","Radionuklid-Messplätze (Medizin, Biologie)(Blutfluß-Messplätze (Radionuklid-),Nieren-Clearence-Messplätze)","3300","5","0500"]
["33100500","Szintigraphie-Scanner","Szintigraphie-Scanner","3310","5","0500"]
["3320/10700","Szintillationskameras","Szintillationskameras, Positronen-Emissionstomographen","3320/1","7","0700"]
["33200700","Gammakameras","Gammakameras (Nuklearmedizin)(Szintillationskameras,Positronenkameras)","3320","7","0700"]
["33210800","Emissions-Computertomogra","Emissions-Computertomographen (Gamma- oder Positronen-)(Positronen-Emissions-Tomographen)","3321","8","0800"]
["33300700","Ganzkörper-Monitore","Ganzkörper-Monitore und andere spezielle Monitore für Nuklearmedizin (Ganzkörper-Zähler (Nuklearmedizin)","3330","7","0700"]
["33500500","Szintillationszähler","Flüssigkeits-Szintillationszähler (Probenwechsler), Beta-Messplätze für flüssige Proben(Low-Level-Beta-Messplätze, -Probenwechsler)","3350","5","0500"]
["33600500","Gammaprobenwechsler","Gammaprobenwechsler für flüssige Proben und Radio-Immuno-Assay (RIA)(Filterband-Auswertegeräte (Gammazähler) für RIA)","3360","5","0500"]
["33700500","Probenaufbereitungsgeräte","Probenaufbereitungs-,Veraschungsgeräte für Beta-, Gammamessplätze (Kaltveraschungsgeräte, Kaltverbrennungsgeräte, Naßveraschungsgeräte, Verbrennungsautomaten für Beta- und Gammamessplätze)","3370","5","0500"]
["33900500","Nuklarmedizin,Geräte,sons","Sonstige Geräte der Nuklearmedizin und Zubehör (außer 3300-3380)","3390","5","0500"]
["34000800","Nervenreizgeräte","Nervenreizgeräte (Elektrotherapiegeräte,Reizgeräte, Reizgeneratoren, Reiz-stromgeräte)","3400","8","0800"]
["34100800","Elektromyographen","Elektromyographen, Nystagmographen(Biosignal-Systeme, Myographen)","3410","8","0800"]
["34200800","Elektrokardiographen","Elektrokardiographen (Analyse- und Auswertegeräte für Elektrokardiographen, Langzeit-EKG-Registrier-.Speichergeräte)","3420","8","0800"]
["34300800","Elektroenzephalographen","Elektroenzephalographen (EEG-Geräte, EEG-Analysesysteme (mit Rechner)","3430","8","0800"]
["34400500","Elektrophysiologische Mes","Elektrophysiologische Messsysteme (außer 3000-3090 und 3400-3430)(Hirndruckmessplätze, Neurologi-sche Untersuchungsgeräte (außer 3400-3430)","3440","5","0500"]
["34500500","Magnet-Enzephalograph-Sys","Magnet-Enzephalographie-Systeme","3450","5","0500"]
["34600500","Kymographen,Plethysmogra","Kymographen, Plethysmographen, Muskelkraft-Messung(Plethysmographen (außer Lungen-funktionsmessung 3050), Tremor-messgeräte)","3460","5","0500"]
["34800500","Telemetriegeräte","Telemetriegeräte (Medizin/Biologie), spezielle Sensoren und Steuergeräte (Akustische Sensoren und Geräte für Gehörlose, Blindenleit- und -warngeräte)","3480","5","0500"]
["34900500","Registrierger,sonst.,med.","Sonstige medizinische Registriergeräte und Zubehör (Bewegungsanalyse-Systeme, Kieferbewegungs-Registriersysteme, Kraftmess-Systeme (Medizin) + E5290, Pupillometriegeräte, Pupillometer)","3490","5","0500"]
["35000500","Zellzähl-u.Klassiergeräte","Zellzähl- und Klassiergeräte (außer Blutanalyse), Koloniezähler(Bakterien- und Zell-Zählgeräte, Klassiergeräte (Zellzähl- und Klas-siergeräte))","3500","5","0500"]
["35101000","Brutschränke","Brutschränke, Lichtthermostaten, Gewebekulturgeräte(Inkubatoren, Inkubationsschränke)","3510","10","1000"]
["35201000","Bakterien-Zuchtgeräte","Bakterien-Zuchtgeräte, Fermenter(Bioraktoren)","3520","10","1000"]
["35300500","Bakterienaufschlussgeräte","Bakterien- und Zell-Aufschlussgeräte (außer 1040)(Bakterien-Pressen, Hochdruck-Homogenisatoren, -Aufschlussgeräte)","3530","5","0500"]
["35400500","Gewebeeinbettungsgeräte","Gewebeeinbettungsgeräte, Fixier- und Färbegeräte(Gewebetrockner und Einbettungsge-räte)","3540","5","0500"]
[{"$f":"D322&F322","v":"35600500"},"Warburg-Apparaturen","Warburg-Apparaturen, Zellstoff-wechsel-Analysegeräte","3560","5","0500"]
["35900500","Gewebeuntersuchung,so.Ger","Sonstige Geräte für Gewebe- und Zelluntersuchung (Biopsiegeräte)","3590","5","0500"]
["36000500","Dermatologische Geräte","Dermatologische Geräte(Hautprüfgeräte (außer psychologi-sche Prüfgeräte 3660))","3600","5","0500"]
["36100500","Gynäkologische Geräte","Gynäkologische Geräte (außer Rönt-gen 3200 und 3900-3920)","3610","5","0500"]
["36200800","Geräte HNO-Heilkunde","Geräte für Hals-Nasen-Ohrenheilkunde (Audiometer, Hörgeräte, Impedanzmessgeräte (Ohrenheilkunde), Sprach-, Stimm- und Gehör-Prüfgeräte)","3620","8","0800"]
["36300800","Spez.Geräte Kinderheilk.","Spezielle Geräte für Kinderheilkunde","3630","8","0800"]
["36400800","Ophtalmologische Geräte","Ophtalmologische Geräte (Anomaloskope, Perimeter)","3640","8","0800"]
["36501000","Orthopädische Geräte","Orthopädische Geräte für Untersuchung und Rehabilitation (Prothesen, Gymnastikgeräte, Gehstützen)","3650","10","1000"]
["36600500","Testgeräte,psychologische","Psychologische Test- und Untersuchungsgeräte (Biofeedbackgeräte (außer für Hautwiderstand 3660, Temperatur 3910, EEG 3430, Puls 3020), Hautwiderstandsmessgeräte)","3660","5","0500"]
["36700500","Geräte,urologische","Urologische Geräte (außer Röntgen 3200)(Nierenuntersuchungsgeräte (außer Röntgen 3200 und Nuklearmedizin 3310), Uromanometer)","3670","5","0500"]
["36801000","Geräte,Zahnmedizin","Zahnmedizinische Geräte(Bohrmaschinen für Zahnmedizin)","3680","10","1000"]
["36900800","Fachärztl.Gebrauch,so.Ger","Sonstige Geräte für fachärztlichen Gebrauch (Fachärztliche Spezialgeräte (außer 3600-3680))","3690","8","0800"]
["37000500","Narkosegeräte","Narkose- und Beatmungsgeräte (Inhalationsgeräte (außer 1040), Respiratoren, Ventilatoren)","3700","5","0500"]
["37100500","Herz-Lungen-Maschinen ","Blutpumpen, Herz-Lungen-Maschinen(Gegenpulsationsanlagen zur Herz- und Kreislaufstützung)","3710","5","0500"]
["37200500","Infusionsgeräte, Katheter","Infusionsgeräte, Katheter (Infusionspumpen)","3720","5","0500"]
["37301000","Operationsmöbel","Operationsmöbel (Operationstische)","3730","10","1000"]
["37400500","Medizin-Laser","Medizin-Laser und elektrochirurgi-sche Geräte(Chirurgie-Laser, Hochfrequenzchi-rurgiegeräte)","3740","5","0500"]
["37500800","Kryochirurgische Geräte","Kryochirurgische Geräte","3750","8","0800"]
["37701200","Operationsinstrumentarien","Operationsinstrumentarien (außer 3740 und 3750) (Instrumentenschränke)","3770","12","1200"]
["37801000","Ausstatt. Operationsräume","Spezielle Ausstattung von Operationsräumen, keimfreie Räume (Inkubatoren für Neu- und Frühgeborene, Laminar-Flow-Systeme für IP, Luftstromisolatoren)","3780","10","1000"]
["37900800","Geräte,Chirurgie","Sonstige spezielle Geräte der Chirurgie (Navigationssysteme (Neurochirurgie), Organersatz  und Implantate (außer Schrittmacher 3030 und Prothesen 3650))","3790","8","0800"]
["38000500","Fachärztl.Gebrauch,so.Ger","Spezielle Untersuchungsgeräte für die Veterinärmedizin(Geräte für Tieruntersuchungen)","3800","5","0500"]
["38101000","OP-Geräte Veterinär","Operationsgeräte für Veterinärmedizin","3810","10","1000"]
["38500500","Lerngeräte, Testgeräte","Lerngeräte, Testgeräte, Konditionierungskammern(Skinner-Boxen)","3850","5","0500"]
["38600500","Mobilitäts-Testgeräte","Mobilitäts-Testgeräte (Aktivitäts-Messanlagen (Tieraktivität))","3860","5","0500"]
["38700500","Stereotaktische Instrume.","Stereotaktische Instrumente","3870","5","0500"]
["38800500","Einricht.Versuchstierhalt","Spezielle Einrichtungen für Versuchstierhaltung","3880","5","0500"]
["38900500","Versuchstierhaltung, spez","Sonstige veterinärmedizinische und zoologische Geräte","3890","5","0500"]
["39000800","Ultraschall-Diagnostikger","Ultraschall-Diagnostikgeräte(Echo-Kardiographiegeräte, Sono-graphiegeräte (Ultraschall-Diagnostik)","3900","8","0800"]
["39100500","Diagnostikger,thermograph","Thermographische Diagnostikgeräte, Thermometer(Hauttemperaturmessgeräte)","3910","5","0500"]
["39200500","Endoskope","Endoskope (Medizin)(Bronchoskope)","3920","5","0500"]
["39400800","Dialysegeräte,med. ","Medizinische Dialysegeräte(Künstliche Nieren)","3940","8","0800"]
["39500800","Ultraschalltherapiegeräte","Ultraschall- Wärme- und Hochfrequenz-Therapiegeräte (Nierenstein-Zertrümmerungs-Systeme, Ultraschall-Therapiegeräte)","3950","8","0800"]
["39601000","Therapiegeräte,physikali.","Physikalische Therapiegeräte und medizinische Bäder (außer 3250, 2400. 3950, 3970)(Bäder (medizinische), spezielle Ge-räte (außer 9680), Massagegeräte)","3960","10","1000"]
["39700800","Druckkammern,med.","Druckkammern für Medizin, Raucher, spezielle flugmedizinische Ap-paraturen(Taucherdruckkammern, Zentrifugen für flugmedizinische Untersuchungen)","3970","8","0800"]
["39800800","Geräte f.Transplantate","Geräte zur Konservierung und Lagerung von Transplantaten","3980","8","0800"]
["40000500","Röntgengeneratoren","Röntgengeneratoren (Strukturfor-schung, Werkstoffprüfung)(Radiographiegeräte (technisch), Röntgendurchleuchtungseinrichtun-gen (Werkstück- und Warenprüfung)","4000","5","0500"]
["40100500","Einkristall-Diffraktomet.","Einkristall-Diffraktometer(Flächendetektor-Röntgendiffrakto-meter (CDD, PDS)","4010","5","0500"]
["40110500","Pulverdiffraktometer","Pulverdiffraktometer (Textur-Spannungsdiffraktometer)","4011","5","0500"]
["40200500","Röntgenkameras","Röntgenkameras für Feinstruktur und Topographie(Hochdruck-Röntgenkameras (mit Diamant-Press-Stücken), Präzessionskammern, Röntgenfeinstruktur-Kammern, -Anlagen (außer Diffraktometer 4010)","4020","5","0500"]
["40300500","Röntgenfluoreszenz-Spekt","Röntgenfluoreszenz-Spektrometer(Mehrkanal-Röntgenspektrometer (MRS), Röntgenspektrometer)","4030","5","0500"]
["40400500","Röntgenmikrosonden","Röntgenmikrosonden(Elektronenstrahl-Röntgenspektrometer)","4040","5","0500"]
["40500500","Messelektronik,Röntgen","Messelektronik und Zubehör für Röntgengeräte(Goniometer (Röntgen-Mikroson-den-), Röntgenmonochromatoren)","4050","5","0500"]
["40600500","Röntgenanalysegeräte","Röntgenanalysegeräte(Energie-/Wellenlängen-dispersive Röntgenanalysegeräte)","4060","5","0500"]
["40700500","Röntgengeräte,spez.","Spezielle Röntgengeräte für Material-Analyse, Strukturforschung, Werkstoff-Bestrahlung (Röntgenmakrosonden, Röntgengerä-te für Strukturanalyse (außer 4000-4060)","4070","5","0500"]
["40800500","Röntgenstrukturanalyseger","Auswertegeräte für Röntgenstrukturanalyse (außer Densitometer 5230)(Diffraktionsmessgeräte (Röntgen-Auswertegeräte)","4080","5","0500"]
["40900500","Röntgenröhren u.sonst.-ge","Röntgenröhren und sonstige Röntgengeräte (Röntgenstrahler (Röntgenröhren)","4090","5","0500"]
["41000500","Elastizitätsmessgeräte","Elastizitäts-Spannungs- und Dämpfungsmessgeräte (EG-Messgeräte (Elastizität, Dämp-fung))","4100","5","0500"]
["41100500","Schallemissionsanalyseger","Geräte zur Schallemissionsanalyse","4110","5","0500"]
["41200500","Ultraschallmaterialprüfg.","Ultraschall-Materialprüfgeräte(Impulsechomessgeräte, Ultraschall-Holographiegeräte)","4120","5","0500"]
["41300300","Schichtdickenmessgeräte","Schichtdickenmessgeräte (außer El-lipsometer 5360, Vakuumbedamp-fung 8380)(Dickenmessgeräte mittels Kernstrahlung, Flächengewichts-Messeinrichtungen)","4130","3","0300"]
["41400700","Fehlerprüfgeräte","Fehlerprüfgeräte (Rissprüfung), e-lektrische oder magnetische(Kelvin-Sonden (Korrosionsprü-fung), Rissprüfgeräte (elektrische, magnetische)","4140","7","0700"]
["41500700","Oberflächen-Prüfgeräte","Oberflächen-Prüfgeräte (Profil, Rauhtiefe)(Ebenheitsprüfer, Rauhtiefemessgeräte)","4150","7","0700"]
["41700400","Metallsuchgeräte","Metallsuchgeräte (Leitungssuchgeräte)","4170","4","0400"]
["41800700","Prüfgeräte Geräteeigensch","Prüfgeräte für sicherheitstechnische Stoffe- und Geräteeigenschaften(Flammpunktprüfer)","4180","7","0700"]
["41900700","Mikrosystemtechnik,sp.Ger","Spezielle Geräte der Mikrosystem-technik(Mikrostruktur-Mess-Systeme)","4190","7","0700"]
["43000500","Landwirtschaftl.Maschinen","Landwirtschaftliche Maschinen (Feldarbeit)(Düngerstreuer, Erntemaschinen, Pflück- und Erntemaschinen)","4300","5","0500"]
["43101000","Schädlingsbekämpfung Gerä","Geräte zur Schädlingsbekämpfung(Spritzgeräte (Schädlingsbekämp-fung, außer 9920))","4310","10","1000"]
["43201000","Bearb.landwirt.Feldproduk","Geräte zur Bearbeitung von landwirtschaftlichen Feldprodukten (Getreide-Sortiermaschinen, -Trocknungsanlagen, Häckselma-schinen, Strohpressen)","4320","10","1000"]
["43301200","Maschinen Bearb.Futtermit","Maschinen zur Bearbeitung von Futtermitteln (Futtermittelmaschinen (außer 1000-1090 und 1980)","4330","12","1200"]
["43401200","Landwirt.Tierhaltung,sp.E","Spezielle Einrichtung für landwirtschaftliche Tierhaltung (außer 9910)(Elektrozäune, Melkmaschinen)","4340","12","1200"]
["43501000","Lebensmittel,sp.Ger.Verar","Spezielle Geräte für Verarbeitung von Lebensmitteln (Eiersortiermaschinen)","4350","10","1000"]
["43600600","Geräte f. Milchwirtschaft","Spezielle Geräte für Milchwirtschaft und Getränkeverarbeitung (außer 120-132, 157 und 158)","4360","6","0600"]
["43700500","Mess-Prüfgeräte Forstwirt","Spezielle forstwirtschaftliche Mess- und Prüfgeräte (Dendrometer, Jahrring-Messmaschinen)","4370","5","0500"]
[{"$f":"D386&F386","v":"43800300"},"Motorsägen,Schälmaschinen","Motorsägen, Schälmaschinen und andere forstwirtschaftliche Arbeitsmaschinen","4380","3","0300"]
["43900500","Landwirtschaftsgeräte so.","Sonstige Geräte für Landwirtschafts- und Forstwissenschaft (außer 4300-4380)","4390","5","0500"]
["44001500","Pflanzenwuchskammern","Pflanzenwuchskammern und -schränke, Klimaversuchsanlagen für Biologie und Medizin(Klimakammern für Biologie,Phytotrone)","4400","15","1500"]
["44100500","Gaswechselmesskammern","Gaswechselmesskammern","4410","5","0500"]
["44200500","Lysimeter","Lysimeter","4420","5","0500"]
["44300500","Bodenfeuchtmessgeräte","Bodenfeuchte-, Bodendichtemessge-rät(Penetrographen, Feld-Penetrometer (Bodendichte und -kompressibilität),Wasserleitfähigkeits-Messgeräte (Leitfähigkeit des Bodens)","4430","5","0500"]
["44400500","Bodenuntersuchungsgeräte","Bodenuntersuchungsgeräte (Biologie) und hydrobiologische Probennahmegeräte (außer 0430 und 4430)(Bodengreifer (Hydrobiologie))","4440","5","0500"]
["44500300","Sammelgeräte, Fanggeräte","Sammelgeräte, Fanggeräte (außer 4440)(Angeln, Fischfanggeräte, elektrisch, Jagdausrüstung (außer Waffen 9980), Netze (für Fischerei und Hydrobiolo-gie)","4450","3","0300"]
["44700500","Anthropolog.Untersuchg.G","Anthropologische Untersuchungsgeräte","4470","5","0500"]
["44800300","Tiere","Tiere","4480","3","0300"]
["44900300","Geräte Biologie,sonst.","Sonstige Geräte der Biologie (außer 3000-3990, 4400-4470, 4600-4690)","4490","3","0300"]
["46000500","Mikrotome, Ultramikrotome","Mikrotome, Ultramikrotome (Gefriermikrotome, Kyrotome)","4600","5","0500"]
["46100500","Trimmgeräte Ultramikroto.","Trimmgeräte und andere Zubehörgeräte für Ultramikrotome (Messerbrechgeräte/Knifemaker)","4610","5","0500"]
["46300800","Kristall-Sägemaschinen","Kristall-Sägemaschinen (Diamantsägen, Innenlochsägen)","4630","8","0800"]
["46400800","Schleif- u.Poliermaschin.","Schleif- und Poliermaschinen (für Labore)","4640","8","0800"]
["46601300","Mikromanipulatoren","Mikromanipulatoren, Elektroden-ziehgeräte, Mikroschmieden(Chip-Positionier- und -Montiergeräte, Kapillarausziehgerä-te)","4660","13","1300"]
["46701300","Handschuhkästen,Schutzgas","Handschuhkästen, Schutzgasanlagen (Anaerobe Kammern, Inertgas-Anlagen (Handschuhkästen))","4670","13","1300"]
["46801300","Reine Werkbänke","Reine Werkbänke, Laminar-Flow-Bänke (Fallstrom-, Umluft-Arbeitsplätze, Mikrobiologische Sicherheitskabinen)","4680","13","1300"]
["46901300","Probenbearbeitung sonst.G","Sonstige Geräte für Probenbearbeitung, Laborgeräte aus Edelmetall","4690","13","1300"]
["50000500","Labormikroskope","Labormikroskope (Auflichtmikroskope, Präparationsmikroskope)",5000,"5","0500"]
["50100500","Photomikroskope","Photomikroskope(Kameramikroskope, Makroskope)",5010,"5","0500"]
["50200500","Stereoskop.Mikroskop+Lupe","Stereoskopische Mikroskope und Lupen(Prismenlupen, Stereomikroskope)",5020,"5","0500"]
["50300500","Werkstatt- u.Messmikrosk.","Werkstatt- und Messmikroskope(Projektionsmikroskope, Werkzeug-messmikroskope)",5030,"5","0500"]
["50400500","Spezielle Mikroskope","Spezielle Mikroskope (außer 5000-5030)(Metallmikroskope, Ultraviolett-Mikroskope)",5040,"5","0500"]
["50500500","Mikroskopphotometer","Mikroskopphotometer(Fluoro-Mikrophotometer, Mikrospektralphotometer)",5050,"5","0500"]
["50600500","Mikroskopbeleuchtung","Mikroskopbeleuchtung(Mikroblitzgeräte, Mikroskopierlampen)",5060,"5","0500"]
["50700500","Mikroskop-Zubehör","Mechanisches Mikroskop-Zubehör und Hilfsgeräte(Drehtische für Mikroskope, Univer-sal-Drehtische (außer 5900), Heiz- und Kühltische für Mikroskope)",5070,"5","0500"]
["50800500","Optisches Mikroskopzube.","Optisches Mikroskopzubehör(Bildeinspiegelungsapparaturen für Mikroskope, Fokussiereinrichtungen)",5080,"5","0500"]
["51000500","Elektronenmikroskope","Elektronenmikroskope (Transmissi-on)",5100,"5","0500"]
["51100500","Hochspann.-elektronenmik.","Hochspannungs-Elektronenmikroskope",5110,"5","0500"]
["51200500","Rasterelektronenmikrosko.","Rasterelektronenmikroskope (für Remission) (REM) (Rasterelektro-nenmikroskope (Auflicht), mit Feld-emissionskathode)",5120,"5","0500"]
["51300500","Elektronenmikroskope,spez","Sonstige spezielle Elektronenmikro-skope(Feldemissions-Mikroskope, Photo-emissionsmikroskope)",5130,"5","0500"]
["51400500","Zub.f.Elektronenmikrosk.","Hilfsgeräte und Zubehör für Elektro-nenmikroskope",5140,"5","0500"]
["51600500","Elektronenbeugungs-Appar.","Elektronenbeugungs-Apparaturen, LEED-, RHEED-, SHEED-Apparaturen (LEED-Apparaturen (LOW Energy Electron Diffraction), RHEED-Apparaturen (Reflected High Energy Electron Diffraction), SHEED-Apparaturen (Scanning High Energy Electron Diffraction))",5160,"5","0500"]
["51700500","Elektronenopt.Bildwandler","Elektronenoptische Bildwandlergeräte und Bildverstärker (außer Fernsehan-lagen 6730) (Bildwandler-Kameras, Nachtsichtgeräte, Restlichtverstärker, Röntgen-Bildverstärker (elektronen-optisch, außer 3220)",5170,"5","0500"]
["51800500","Elektronenstrahlquellen","Elektronen- und Ionenstrahl-Quellen(Elektronenstrahl-Kanonen (außer 8380)), Ionen-Ätzanlagen (Oberflä-chenbearbeitung und Bohren, außer Präparieranlagen 8330)",5180,"5","0500"]
["51900500","Elektronenopt.Geräte,sons","Sonstige elektronenoptische Geräte (außer 4040 und 5100-5180)(Baugruppen, Steuergeräte und Zube-hör für elektronenoptische Geräte, außer 5140)",5190,"5","0500"]
["52000500","Photometer,Absorptionspho","Photometer, Absorptionsphotometer (außer Spektralphotometer 1800-1860)(Kolorimeter, UV-Photometer (Filter-))",5200,"5","0500"]
["52100500","Flammen-,Emissionsphotom.","Flammenphotometer, Emissionspho-tometer(ATP-Photometer (Adenosin-Triphosphat-Photometer), Biolumi-neszenz-Messgeräte, -Photometer (ATP-Photometer, Luziferasetest)",5210,"5","0500"]
["52200500","Fluoreszenzphotometer","Fluoreszenz-Photometer, Filterfluo-rometer(Fluoro-Nephelometer)",5220,"5","0500"]
["52300500","Densitometer,Mikrophotom.","Densitometer, Mikrophotometer(Autodensitometer, Flying-Spot-Mikrophotometer, Mukroidensitome-ter)",5230,"5","0500"]
["52400500","Photonenzähler,Quantenpho","Photonenzähler, Quantenphotometer(Photon-Counting-Systeme)",5240,"5","0500"]
["52500500","Helligkeitsmessgeräte","Helligkeits- und Beleuchtungsmessgeräte, Belichtungsmesser(Belichtungsmesser, Lichtstrommesser, Luxmeter)",5250,"5","0500"]
["52700500","Farbmessgeräte","Farbmessgeräte, Weißgradmesser(Farbanalysatoren (optisch),Farbtemperatur-Messgeräte, Leuko-meter)",5270,"5","0500"]
["52800500","Photometer, Zubehör","Küvetten und Zubehör für Photometer und Spektralphotometer(Absaugpumpen für Küvetten, Hoch-druck-Küvetten, Küvettenhalter, Pro-benautomaten)",5280,"5","0500"]
["52900500","Photometer, sonst.","Sonstige Photometer (außer 1800-1890 und 5200-5270)(Laser-Photometer (Integratoren für Lichtimpulse)",5290,"5","0500"]
["53000500","Interferometer","Interferometer, Vielstrahl-Interferometer, Etalons(Gasinterferometer)",5300,"5","0500"]
["53100500","Interferenzapparaturen","Interferenzapparaturen, Zweistrahl-Interferometer(Holographische Material-Testgeräte (Interferometer), Mach-Zehnder-Interferometer)",5310,"5","0500"]
["53200500","Polarimeter","Polarimeter (für feste Frequenzen) und Polarisationsgeräte(Kompensations-Polarimeter, Polari-sations-Fluorometer)",5320,"5","0500"]
["53300500","Spektralpolarimeter","Spektralpolarimeter (CD, ORD), Dichrographen(MCD-Geräte (Magnetischer Cirsuar-Dichroismus, Rotationsdispersi-onsspektrometer (ORD)",5330,"5","0500"]
["53500500","Refraktometer","Refraktometer(Durchfluß-Refraktometer)",5350,"5","0500"]
["53600500","Messgeräte, Licht","Messgeräte für gestreutes und reflek-tiertes Licht, optische Oberflächen-prüfung(Aerosol-Photometer (Streulichtpho-tometer), Lichtstreuungs-Messgeräte, Streulichtphotometer)",5360,"5","0500"]
["53700500","Spannungsoptische Geräte","Spannungsoptische Geräte, Schlieren-apparaturen(Optische Spannungsprüfgeräte, Pola-riskope (Spannungsoptik))",5370,"5","0500"]
["53900500","Messgeräte Licht,sonst.","Sonstige Messgeräte für Lichtbre-chung, -reflexion(Frequenz-Messer, optische, Refrak-tometer, sonstige und Zubehör (außer 5350)",5390,"5","0500"]
["54000700","Photoapparate, Kleinbild","Photoapparate (Kleinbildkameras bis 24 x 36 mm)(Kleinbildkameras)",5400,"7","0700"]
["54100700","Photoapparate,Großformate","Photoapparate (Format größer als 24 x 36 mm)(Großformatkameras, Polaroid-Kameras (R))",5410,"7","0700"]
["54200500","Filmkameras","Filmkameras (bis 100 Bilder/(Sek)(Normalfilm-Kameras)",5420,"5","0500"]
["54300700","Hochgeschwindigkeitskame.","Hochgeschwindigkeits-Kameras (ab 100 Bilder/Sek)(CCD-Cameras, Hochfrequenzkame-ras)",5430,"7","0700"]
["54400600","Reproduktionskameras","Reproduktionskameras, optische Spe-zialgeräte für Halbleitertechnologie und Leiterplatten(Belichtungsgeräte für Photoresistfo-lien, Leiterplatten)",5440,"6","0600"]
["54500700","Photograph.Spezialkameras","Photographische Spezialkameras (Luftbild-, Register-, Stereo-, außer 0640-0660, 5400-5440 und 5460)(Messkammersysteme, ballistisch (Satellitengeodäsie), Satellitenkameras, Unterwasser-Kameras)",5450,"7","0700"]
["54600700","Mikrophotograp.Einrichtu.","Mikrophotographische Einrichtungen(Aufsetzkameras, Mikroskopkameras)",5460,"7","0700"]
["54700500","Photozubehör","Photozubehör (Bereitschaftstaschen (Kameras), Ent-fernungsmesser (Photozubehör), Fil-ter (Photographie), Polarisations-Filter (Photozubehör), Stative für Kameras, Teleobjektive)",5470,"5","0500"]
["54800500","Photograph.Laborgeräte","Photographische Laborgeräte und Maschinen(Belichtungsautomaten (Photolabor), Dunkelkammer-Einrichtungen, Ent-wicklungsmaschinen (Photo- und Röntgenlabor), Filmschneidetische, Kopierautomaten, Kopiergeräte (Pho-tolabor), Trockenmaschinen, Tro-ckenpressen (Photolabor)",5480,"5","0500"]
["54900700","Photo-u.Kinoapparate,sons","Sonstige Photo- und Kinoapparate (außer 5400-5460)",5490,"7","0700"]
[{"$f":"D450&F450","v":"55000500"},"Diaprojektoren, Episkope","Diaprojektoren und Episkope(Overhead-Projektoren, Tageslicht-Projektoren)",5500,"5","0500"]
["55100500","Filmprojektoren","Filmprojektoren und Projektionsma-schinen(Filmbetrachtungs-, Schneidegeräte, Schmalfilmprojektoren, Tonfilmpro-jektoren)",5510,"5","0500"]
["55200300","Mikrofilm-Kameras","Mikrofilm-Kameras, -Lese und -Rückvergrößerungsgeräte(Fiche-Duplizierer, Mikrofilmgeräte, -automaten)",5520,"3","0300"]
["55300300","Holographie-Einrichtungen","Holographie-Einrichtungen (außer Interferometer 5310)(Impulsholographiegeräte)",5530,"3","0300"]
["55400300","Physiologisch-opt. Geräte","Physiologisch-optische Geräte (außer ophthalmologische Geräte 3640 und 5500-5530)",5540,"3","0300"]
["55600300","Ablesefernrohre","Ablesefernrohre, Kollimatoren, Peri-skope(Endoskope (technisch), Fadenkreuz-fernrohre, Zielfernrohre, Visierein-richtungen)",5560,"3","0300"]
["55700500","Mess-u.Prüfeinricht. opt.","Mess- und Prüfeinrichtungen für opti-sche Geräte(Brennweitenmessgeräte, Objektiv-Prüfgeräte)",5570,"5","0500"]
["55800300","Fernrohre terrest.","Terrestrische Fernrohre, Ferngläser(Feldstecher,Fernrohre, Ferngläser (außer 0700 und 5560)",5580,"3","0300"]
["56000400","Spektrallichtquellen","Spektrallichtquellen(Natriumlampen, Spektrallampen)",5600,"4","0400"]
["56100400","Glühlampen,spez.","Glühlampen und Infrarotstrahler für spezielle Anwendung(Bandlampen, Wolframbandlampen)",5610,"4","0400"]
["56200400","Gasentladungslampen","Gasentladungslampen für spezielle Anwendung, UV-Strahler(Analyselampen, Quarzlampen (Bogenlampen), Tauchlampen (IV-Lampen), Xenon-Hochdrucklampen)",5620,"4","0400"]
["56400400","Impulslampen,Blitzgeräte","Impulslampen, Blitzgeräte, Strobo-skope(Blitzlichtgeräte (Photographie), Fun-kenblitzgeräte, Stroboskope (außer Hochgeschwindigkeitskameras 5430), Warnblinkleuchten)",5640,"4","0400"]
["56500400","Monochromatoren","Monochromatoren (außer Röntgen- 4050)(Doppelmonochromatoren, Einfach-monochromatoren, Polychromatoren)",5650,"4","0400"]
["56600500","Scheinwerfer","Scheinwerfer und spezielle Leuchten (Bühnenleuchten, Grubenlampen, Infrarot-Scheinwerfer, Operations-leuchten)",5660,"5","0500"]
["56800500","Lampenhäuser,Zündgeräte","Lampenhäuser, Zündgeräte und Zu-behör zu Lichtquellen(Beleuchtungsregler, Lichtregler, Dimmer, Reflektoren (Optik, Be-leuchtung), Steuergeräte für Licht-quellen)",5680,"5","0500"]
["56901000","Lichtquellen,sonst.","Sonstige Lichtquellen (außer 5600-5680, 5700-5790, 9070, 9170)(Faserlichtquellen)",5690,"10","1000"]
["57000800","Festkörperlaser","Festkörper-Laser(Glaslaser,Impulslaser, Festkörperlaser, Rubin-laser)",5700,"8","0800"]
["57100800","Gaslaser","Gas-Laser(Argon-Ionen-Laser, CO2-Laser, Io-nen-Laser)",5710,"8","0800"]
["57200800","Farbstofflaser","Farbstoff-Laser(Farbstoff-Ringlaser, Laser-Verbundsysteme (Farbstofflaser mit Pumplaser, Argon-, Stickstoff-))",5720,"8","0800"]
["57300800","Laser,spez.","Spezielle Laser und -Stabilisierungsgeräte (Frequenz, Mode)(Chemische Laser, Halbleiter-Laser)",5730,"8","0800"]
["57400800","Lasermaschinen","Laser in der Fertigung(Lasermaschinen, Laser-Schweißgeräte, Laser-Bohrmaschinen)",5740,"8","0800"]
["57500800","Lasermesssysteme","Spezielle Laser-Mess-Systeme",5750,"8","0800"]
["57600800","Laser-Optik","Laser-Optik (Strahlenaufweitung, Modenfilter)(Raumfilter (Laser-Optik))",5760,"8","0800"]
["57700500","Lichtmodulatoren","Lichtmodulatoren, Elektrooptik, Magnetooptik(Elektrooptische Bauelemente (Modulatoren, Schalter), Laser Timer, Steuergeräte für Lichtmodulatoren)",5770,"5","0500"]
["57800500","Optik,nichtlinear","Nichtlineare Optik (Frequenzverviel-facher)(Frequenz-Verdoppler, Frequenzver-vielfacher (Optik))",5780,"5","0500"]
["57900800","Laser,sonst.","Sonstige Laser und Zubehör (außer 5700-5780)(Laser-Netzgeräte, Laser-Kristalle)",5790,"8","0800"]
["58000500","Photodetektoren","Photodetektoren, -zellen, -widerstände für UV/VIS(Detektoren für UV, Detektoren für sichtbares Licht (VIS), Photozellen (vacuum- und gasgefüllte), Vakuum-photozellen)",5800,"5","0500"]
["58101000","Photoelektrische Wandler","Photoelektrische Wandler, Photoele-mente, Solarzellen, Photovoltaik(Photovoltaik-Systeme, Solarzellen)",5810,"10","1000"]
["58200500","Elektronenvervielfacher","Elektronenvervielfacher(Kanalelektronenvervielfacher, Pho-tomultiplier)",5820,"5","0500"]
["58300500","Thermoelektrische Wandler","Thermoelektrische Wandler, Thermo-säulen(Thermoelemente)",5830,"5","0500"]
["58400500","Infrarot-Detektoren,spez.","Spezielle Infrarot-Detektoren(Bolometer, Halbleiter-Detektoren (IR), Pyroelektrische Detektoren (au-ßer Joulemeter 5860)",5840,"5","0500"]
["58600800","Laser-Leistungsmessgeräte","Laser-Leistungsmessgeräte(Energiemessgeräte für Laser (Energy Meters),Joulemeter (Laser-Energiemessgeräte), Radiometer für Laser)",5860,"8","0800"]
["58900300","Photodetektoren,sonst.","Sonstige Photodetektoren (außer 5800-5860)(Opto-elektronische Koppler, Opto-Koppler, Photoempfänger (außer 5800-5860)",5890,"3","0300"]
["59000500","Optische Bänke","Optische Bänke einschl. mechani-scher Bauelemente(Koordinatentische (für optische Komponenten), Grundplatten, Granit-platten für optische Mess-Systeme, Rotationstische, Positioniertische (für optische Komponenten))",5900,"5","0500"]
["59200500","Spiegel,opt.","Spiegel, Spiegel-Optik(Dielektrische Spiegel, Drehspiegel, Spiegelsysteme, Hochspiegel)",5920,"5","0500"]
["59300500","Prismen,Strahlenteiler","Prismen, Strahlenteiler und Polarisa-tionsoptik(Analysatoren (Polarisationsoptik), Dachkantprismen, Verzögerungsplat-ten (Optik)",5930,"5","0500"]
["59400500","Gitter,opt.","Optische Gitter(Konkavgitter, Plangitter, UV-Gitter)",5940,"5","0500"]
["59500500","Blenden,Spalte","Blenden, Spalte(Lichtverschlüsse, Lichtunterbrecher)",5950,"5","0500"]
["59600500","Filter,optische","Lichtfilter(Filter (optische), Grau-Filter, Polari-sations-Interferenz-Filter)",5960,"5","0500"]
["59700500","Linsen,Kondensatoren","Linsen, Kondensoren(Asphärische Linsen, Kondensoren, Lupen, Handlupen)",5970,"5","0500"]
["59800500","Faseroptische Bauelemente","Faseroptische Bauelemente(Glasfaser-Optik, Fiberoptik, Bau-elemente, Lichtleiter)",5980,"5","0500"]
["59900500","Optische Bauelemente,sons","Sonstige optische Bauelemente",5990,"5","0500"]
["60001000","Elemente u. Akkumulatoren","Elemente und Akkumulatoren(Batterien, Normalelemente)",6000,"10","1000"]
["60101900","Batterieladegeräte","Batterie-Ladegeräte, Batterie-Überwachungsgeräte (Batterie-Prüfgeräte, -Kontrollgeräte, Not-strom-Einrichtungen (Lade- und Schaltgeräte))",6010,"19","1900"]
["60200500","Gleichspannungsnetzgeräte","Gleichspannungs-Netzgeräte (außer 0160, 6060 und 6070)(Gegenspannungsgeber, automatische Gegenspannung, Gleichstromwandler (statische Umrichter für Labor- und Fernmeldegeräte, Netzanschlussgerä-te (allgemein), Netzteile, Schalt-Netzteile, Speisegeräte (elektrische))",6020,"5","0500"]
["60301600","Wechselspannungsstabilisa","Wechselspannungsstabilisatoren, Spannungskonstanthalter(Netzstabilisatoren, Wechselstrom-, Wechselspannungsgeber und  -standards)",6030,"16","1600"]
["60400700","Frequenz-Umformer","Frequenz-Umformer (statisch) und Hochfrequenzgeneratoren(Frequenz-Stabilisatoren, Mikrowel-len-Generatoren, Mittelfrequenz-Generatoren (statisch) für Erwär-mung)",6040,"7","0700"]
["60501500","Transportab.Stromerzeuger","Transportable Stromerzeuger (mit Antriebsmotor)(Aggregate für Stromerzeugung, Not-stromaggregate (transportabel), außer 2610 und 9850)",6050,"15","1500"]
["60600700","Hochspannungsspeisegeräte","Hochspannungsspeisegeräte (über 1kV, außer 268)(Hochspannungsnetzgeräte, -einbaunetzteile, Mikrowellen-Netzgeräte)",6060,"7","0700"]
["60701500","Stromversorgungsgeräte sp","Spezielle Stromversorgungsgeräte, Versorgungsmodule(DC/DC-Wandler, Stromversor-gungsmodule, Unterbrecher)",6070,"15","1500"]
["60901500","Strom-u.Spannungsquellen","Sonstige Strom- und Spannungsquel-len (außer 6000-6080)(Brennstoffzellen)",6090,"15","1500"]
["61000700","Verstärker anal.Messtechn","Verstärker und Bausteine der analo-gen Messtechnik (außer 6700-6790)(Analogschaltungen, Differenzver-stärker, Leistungsverstärker (außer Studio- und Sendertechnik), Vorver-stärker)",6100,"7","0700"]
["61100700","Selektive Verstärker","Selektive Verstärker, Lock-in-Verstärker(Anzeigeverstärker, abstimmbar, Trä-gerfrequenz-Verstärker (außer 8720, 8740, 8970)",6110,"7","0700"]
["61200700","Analog-Verstärker","Sonstige Analog-Verstärker (z.B. pa-rametrische Verstärker, Wanderfeld-röhren-Verstärker) (Magnetverstär-ker)",6120,"7","0700"]
["61400700","Verstärker digital","Verstärker und -Module der Digital-elektronik, Impulsformer(Digitale Verstärkersysteme, Impuls-former, -regenerierverstärker, Impuls-verstärker)",6140,"7","0700"]
["61500700","Zählgeräte (elektronisch)","Zählgeräte (elektronisch), Frequenz-zähler und Zählschaltmodule(Digitalzähler, Universal-Zähler, Zeit-intervallmesser (elektrische)",6150,"7","0700"]
["61600700","Diskriminatoren","Diskriminatoren, Einkanalanalysatoren (außer Analog-Klassiergeräte 7340)(Alarm-Display, Schwellen- und Fenster-Diskriminatoren, -Generatoren)",6160,"7","0700"]
["61701000","Torschaltuangen","Torschaltungen, Koinzidenzschaltun-gen und Digitallogik-Module (Linear Gate, Lineare Torschaltungen)",6170,"10","1000"]
["61800700","Ratemeter,Mittelwertmess.","Ratemeter, Mittelwertmesser(Mittelwertmesser, Ratemeter, Rate-meter-Integratoren)",6180,"7","0700"]
["61900700","Verstärker sonst.","Sonstige Verstärker und Bausteine der Nuklearelektronik (außer 6100-6180)(Nukleare Elektronik-Baugruppen (außer 6140-6180)",6190,"7","0700"]
["62000500","Elekt.strahl-Oszilloskope","Elektronenstrahl-Oszilloskope (Nor-malröhre)(Breitband-Oszillographen, -Oszilloskope)",6200,"5","0500"]
["62100500","Speicheroszilloskope","Speicheroszilloskope",6210,"5","0500"]
["62200500","Elekt.strahl-Oszillos.spe","Spezielle Elektronenstrahl-Oszilloskope(Impulsspektroskope (Strahlungsmes-sung),Sichtgeräte (Großbild-Oszilloskope, außer für EDV- und Fernsehanlagen))",6220,"5","0500"]
["62300500","Oszilloskope,Zubehör","Zubehör und Einschübe für Elektro-nenstrahl-Oszilloskope(Oszilloskope-Zubehör, Verstärker-Einschübe (Oszilloskope))",6230,"5","0500"]
[{"$f":"D514&F514","v":"62500500"},"Lichtstrahloszillographen","Lichtstrahl-Oszillographen(Registrieroszillosgraphen,UV-Schreiber, UV-Registrier-Oszillographen)",6250,"5","0500"]
["62600500","Flüssigkeitsstrahloszillo","Flüssigkeitsstrahl-Oszillographen(Düsen-Oszillographen, -Direktschreiber)",6260,"5","0500"]
["62700500","Oszillograph,Zubehör","Zubehör und Vorverstärker für Licht-strahl- und Flüssigkeitsstrahloszil-losgraphen(Galvanometer (für Lichtstrahloszil-lographen), Spulenschwinger)",6270,"5","0500"]
["62900500","Oszillograph,sonst.","Sonstige Oszillographen (außer 6200-6270)",6290,"5","0500"]
["63000500","Messgeneratoren","Messgeneratoren, Messsender, Fre-quenznormale(Eichfrequenz-Generatoren, Leistungsmess-Sender, Oszillatoren, Pegelsender, Synthesizer (Messgene-ratoren)",6300,"5","0500"]
["63200500","Wobbelgeneratoren","Wobbelgeneratoren(Wobbelsender, Wobbelzusätze)",6320,"5","0500"]
["63300500","Impulsgeneratoren","Impulsgeneratoren(Blitzgeneratoren, Doppelblitz-Generatoren (Impulsgeneratoren), Pulsgeneratoren, Zündstromgenerato-ren (außer 5680 für Lampen und 8410 für Ölbrenner))",6330,"5","0500"]
["63400500","Funktionsgeneratoren","Funktionsgeneratoren(Programmgeneratoren (digitale), Rechteck-Generatoren)",6340,"5","0500"]
["63500500","Messgeneratoren,spez.","Spezielle Messgeneratoren (außer 6300-6340)(Fernschreib- und Daten-Signalgeneratoren, Referenzgenerato-ren (für mechanische Schwingsyste-me), Scangeneratoren (digital))",6350,"5","0500"]
["63600500","Filter,Resonatoren","Filter (elektrische), Resonatoren(Analogfilter, Digitale Filter, Fre-quenzweichen, Resonanzfrequenz-messer)",6360,"5","0500"]
["63700500","Verzögerungsketten","Verzögerungsketten, -leitungen(Ultraschall-Verzögerungsleitungen)",6370,"5","0500"]
["63800500","Frequenzanalysatoren","Frequenzanalysatoren, Schwingungs-analysatoren",6380,"5","0500"]
["63900500","Funktionsgeneratoren,Zub.","Zubehör zu Mess- und Funktionsge-neratoren(Frequenz-Synchronisiergeräte, -Stabilisiergeräte (HF-Technik), Fre-quenz-Vervielfacher (elektrisch), Phasenschieber (Hochfrequenztech-nik)",6390,"5","0500"]
["64000300","Vielfachmessinstrumente","Vielfach-Messinstrumente (Span-nung, Strom, Widerstand), analog(Multimeter, analog anzeigend)",6400,"3","0300"]
["64100300","Strom-u.Spannungsmesser","Analog anzeigende Strom- und Span-nungsmesser(AC-Voltmeter (analog), Ampermeter (analog), Galvanometer, Picoamme-ter, Voltmeter (analog)",6410,"3","0300"]
["64200300","Messempfänger","Messempfänger, Feldstärkemessgerä-te(Antennenmessgeräte, Messempfän-ger für Empfangsantennen, RF-Interferometer)",6420,"3","0300"]
["64300300","Messgeräte,digital","Digital anzeigende Messgeräte für Spannung, Strom, Widerstand(Digital-Effektivwert-Voltmeter, -Multimeter, Digital-Multimeter, Viel-fach-Messinstrumente, digital anzei-gend)",6430,"3","0300"]
["64400300","Messgeräte elekt.Leistung","Messgeräte für elektrische Leistung, Phasenwinkel, andere spezielle elekt-rische Messgrößen(Aussteuerungs-Messgeräte, Isolati-onsmesser, Leistungsmesser, Watt-messer, Spitzenspannungsmesser)",6440,"3","0300"]
["64500300","Messbrücken u.Kompensato.","Messbrücken und Kompensatoren, Widerstandsmessgeräte(Erdungsmessgeräte, Erdwiderstands-Messgeräte, Induktivitätsmessgeräte, Ohmmeter, Wechselspannungs-Kompensatoren)",6450,"3","0300"]
["64600500","Messwandler","Messwandler, Vorwiderstände und Zubehör zu Messinstrumenten (Spannungswandler, Stromwandler)",6460,"5","0500"]
["64700500","Messwertwandler,elekt.","Elektronische Messwertwandler (A/D, D/A, Spannung/Frequenz, Puls-Code)(Analog-Digitalwandler, -converter, Digital-Analogwandler, -converter, Gleichstrom-Messwandler, Span-nungsfrequenzumformer)",6470,"5","0500"]
["64800500","Prüfplätze E-Geräte","Prüfplätze für elektrische und elekt-ronische Geräte(Elektronik-Laborplätze, Zähler-Prüfplätze, Zähler-Eicheinrichtungen)",6480,"5","0500"]
["64900500","Messgeräte,sonst.","Sonstige elektrische und elektronische Messgeräte (Elektrometer, Faden-Galvanometer, Teilentladungs-Messgeräte (TE-Messgeräte))",6490,"5","0500"]
["65000300","Linienschreiber","Linienschreiber, Fallbügelschreiber (Mehrfarbenschreiber)(Flachpultschreiber, Kompensations-linienschreiber, Thermoschreiber)",6500,"3","0300"]
["65100300","Kompensationsschreiber","Kompensations-Schreiber(XT-Schreiber, Punktdrucker)",6510,"3","0300"]
["65200300","XY-Schreiber","XY-Schreiber(XY-T-Schreiber, -Kompensationsschreiber, Zweikoordinaten-Kompensations-Linienschreiber)",6520,"3","0300"]
["65301500","Registriergeräte","Spezielle Registriergeräte (Ereigniszähler, Störungsschreiber, Blitzzähler)(Atmospherics-Counter (Ereigniszähler), Leistungsschreiber, Blindleistungsschreiber, Registriergeräte, Mehrkanal-Registriergeräte für seismische Messungen)",6530,"15","1500"]
["65401500","Wattstundenzähler","Wattstunden-, kWh-Zähler, Betriebs-stundenzähler(Elektrizitätszähler)",6540,"15","1500"]
["65500800","Regisriergeräte,elekt,Zub","Zubehör für elektrische Registrierge-räte(Einschubverstärker für Registrierge-räte)",6550,"8","0800"]
["65900300","Elektr.Registriergerät,so","Sonstige elektrische Registriergeräte (außer 6500-6550)",6590,"3","0300"]
["66001000","Fernsprechanlagen","Fernsprechanlagen, Vermittlungsan-lagen(Nebenstellenanlagen, Telefonanlagen und Zubehör)",6600,"10","1000"]
["66100600","Fernschreibanlagen","Fernschreibanlagen, Bildtelegraphie-geräte(Facsimilie-Schreiber, Faxgeräte, Fernkopierer, Telefaxgeräte)",6610,"6","0600"]
["66200500","Funkanlagen","Funkanlagen (außer Konferenz- und Saal-Sprechanlagen)(Allwellenempfänger, Funksprechge-räte, Funksendeempfänger, Hand-funkgeräte, Richtfunk-Stationen, -Anlagen, Satellitenfunkanlagen, -empfangsanlagen, Transmitter, Transceiver)",6620,"5","0500"]
["66300800","Sprechanlagen","Sprechanlagen, Rufanlagen(Bordsprechanlagen, Lichtrufanlagen, Wechselsprechanlagen)",6630,"8","0800"]
["66400800","Meldeanlagen","Meldeanlagen (außer Feuermelder 9860), Lichtschranken(Alarmanlagen (außer Öltanküberwa-chung 9890), Klingelanlagen, Läute-werke, Objektschutz- und Überwa-chungsgeräte, Signalanlagen, Tonge-ber Hörner, Summer (Alarm-,Signal-)",6640,"8","0800"]
["66501000","Antennenanlagen","Antennenanlagen(Antennenmasten, -systeme (außer Radioteleskope 0740 und Radaran-tennen 6670), Antennen-Verstärker)",6650,"10","1000"]
["66600800","Zeitanzeigeanlagen","Zeitanzeige- und -registrieranlagen(Stechuhren, Zentraluhrenanlagen)",6660,"8","0800"]
["66700800","Radaranlagen","Radaranlagen (außer Distanzmesser 0620 und Doppler-Radar 6640 und 8860)(Kollisionswarngeräte, Navigations-Radargeräte, Wetterradaranlagen)",6670,"8","0800"]
["66801000","Rohrpostanlagen","Rohrpostanlagen(Behälter-Förderanlagen (Rohrpostan-lagen))",6680,"10","1000"]
["66901000","Fernmeldeanl.,sonst.","Sonstige Fernmeldegeräte und Anla-gen(Gebührenzähler (Telefon), Telefon-Anrufbeantworter, Verschlüsselungs-geräte, Chiffriergeräte)",6690,"10","1000"]
["67000700","Tonübertragungsanlagen","Lautsprecher- und Tonübertragungs-anlagen(Kopfhörer, Lautsprecherboxen und -säulen, Stereokopfhörer, Übertra-gungsanlagen (Lautsprecher)",6700,"7","0700"]
["67100300","Magnetbandgeräte","Magnetbandgeräte für Musik und Sprache (außer Diktiergeräte 9320)(DAT-Recorder (Digital-Kassetten-), Tonbandgeräte und Zubehör, Kassettenrekorder für Tonaufzeichnung)",6710,"3","0300"]
["67200300","Steueranlagen","Steueranlagen, Mischpulte und Schallplattengeräte(Compact Disc-Abspielgeräte, Plat-tenspieler, Plattenwechsler, Tonstu-diotechnik, Geräte (außer Mikrofone 0040, Lautsprecher 6700 und Mag-netbandgeräte 6710), Verstärkeranla-gen (Tonstudio)",6720,"3","0300"]
["67300500","Fernsehkameras","Fernseh-Kameras und vollständige Fernsehanlagen(Bild-Sprechgeräte, Farbfernsehka-meras, Unterrichts-Mitschau-Anlagen, Videokameras)",6730,"5","0500"]
["67400300","Fernsehempfänger","Fernseh-Empfänger, -Monitoren, -Projektoren(Bildmonitore, Farbmonitore, Groß-bildprojektoren (Fernseh-)",6740,"3","0300"]
["67500700","Videorekorder","Video-Recorder, Speicher(Digital speichernde Fernsehanlagen (Magnetband, für graphische Darstel-lung, Magnetbänder für Video-Recorder, VCR (Video-Cassetten-Recorder))",6750,"7","0700"]
["67600500","Bildregie-u.Kontroll-Einh","Bildregie- und Kontroll-Einheiten, Steuergeräte(Farbumsetzer (mit Äquidensiten-Darstellung) für visuelle Bildauswer-tung), Fernseh-Regie-Einrichtungen, Fernseh-Trickmischpulte, Fernseh-Steuerzentralen)",6760,"5","0500"]
["67700500","Sprachlehrsysteme","Sprachlehrsysteme, Sprachlabors",6770,"5","0500"]
["67800700","Audiovisuelle Lehrsysteme","Audio-visuelle Lehrsysteme und Ge-räte (außer Projektionsgeräte 550, 551 und Fernsehanlagen 673)",6780,"7","0700"]
["67900500","Audiogeräte,sonst.","Sonstige Geräte der Audio-, Videotechnik (außer 0040 Mikrofone und 6700-6780)(Fernseh-Studio-Zubehör, Tonaufzeichnung auf Film, Tonstudiozubehör)",6790,"5","0500"]
["68001000","Widerstände","Widerstände, Potentiometer(Belastungswiderstände, Messwider-stände, Spannungsteiler (außer Mess-brücken und Kompensatoren 6450)",6800,"10","1000"]
["68101000","Kondensatoren","Kondensatoren (Abstimm- und Mess-kondensatoren)(Drehkondensatoren)",6810,"10","1000"]
["68201000","Transformatoren","Induktivitäten, Transformatoren (Übertrager, Drosselspulen (für Elekt-ronik), Faradayspulen)",6820,"10","1000"]
["68301000","Schalter,elektr.","Schalter, Magnete, Relais, Sicherun-gen(Dioden-Schalter (PIN-Dioden-), Reed-Relais, -Kontakte, Stufenschal-ter, Überstrom-Selbstauslöser (außer 2650))",6830,"10","1000"]
["68401000","Elektronenröhren","Elektronenröhren, Mikrowellen-Generatoren(Bildröhren, Bildwandlerröhren, Braunsche Röhren, Elektronenstrahl-Röhren, Oszillographen-, Oszil-loskop-Röhren)",6840,"10","1000"]
["68501000","Halbleiter-Bausteine","Halbleiter-Bausteine und integrierte Schaltungen(Dioden (außer Photo-Dioden 5800), Transistoren)",6850,"10","1000"]
["68601000","Mikrowellen-Bauelemente","Mikrowellen-Bauelemente(Abschlusswiderstände (Mikro-wellen-), Impedanzwandler (für Mik-rowellen), Isolatoren (nicht reziproke Leiter, Richtkoppler, Wellenleiter (Hochfrequenztechnik)",6860,"10","1000"]
["68701000","Gehäuse","Gehäuse, Racks(Bin & Power Supply, Überrahmen mit Netzteil (CAMAC), Racks für elektronische Bauelemente)",6870,"10","1000"]
["68801000","Verbindungselemente","Verbindungselemente, Steckvorrich-tungen, Schleifringe(Drehübertrager (schleifringlos, Quecksilber-Kontakte) für Messwert-übertragung)",6880,"10","1000"]
["68901000","Bauelemente,elekt.,sonst.","Sonstige elektrische und elektronische Bauelemente",6890,"10","1000"]
["69001200","Regelsysteme,elekt.u.mech","Elektrische und mechanische Regel-systeme",6900,"12","1200"]
["69101200","Regelsysteme,pneumat.u.so","Pneumatische und andere Regelsys-teme (außer 6900)",6910,"12","1200"]
["69201200","Zähl-u.Registriersysteme","Mechanische, pneumatische und hyd-raulische Zähl- und Registriergeräte (Elektromechanische Zähler, Zähl-werke,Mechanische Zähler, Stückzähler)",6920,"12","1200"]
["69301200","Steuergeräte,elekt.","Elektrische Steuergeräte und Anlagen(CNC-Steuerungen (Computerized Numerical Control) für Maschinen,NC-Steuerungen für Maschinen (Nu-merical Control),Programmgeber (Kurvenscheiben-))",6930,"12","1200"]
[{"$f":"D578&F578","v":"69401200"},"Steuergeräte,pneum.","Pneumatische Steuergeräte und Ver-suchsanlagen(Elektropneumatische Stellungsregler, Signalformer)",6940,"12","1200"]
["69501200","Steuergeräte,hydraul.","Hydraulische Steuergeräte und Ver-suchsanlagen(Hydraulik-Steuerungen)",6950,"12","1200"]
["69601000","Fernmess-u.wirksysteme","Fernmess- und Fernwirksysteme (au-ßer für Medizin/Biologie 3480),(Leitstände für Mess- und Versuchs-anlagen, Verkehr,Warten für Kraftwerke, Verfahrens-technik)",6960,"10","1000"]
["69701000","Bauelement Fernmeßsysteme","Bauelemente und Baugruppen für Fernmess-, Fernwirk- und Steuer-Systeme(Annäherungsschalter,Elektrooptische Trennverstärker für Fernmesssysteme,Fernsteuersender, -Empfänger,Grenzschalter,Ultraschall-Fernsteuergeräte)",6970,"10","1000"]
["69800500","Messwertanzeigegeräte","Mechanische und elektrische Mess-wertanzeigegeräte(Anzeigeelemente (Flüssigkristall-, Laserdioden-, Plasma-), Displays, Ziffern- und alphanumerische Dis-plays (außer Datensichtgeräte 7200 für EDV), Ziffernanzeige-Einheiten, Displays (CAMAC))",6980,"5","0500"]
["69901200","Regelsysteme,sonst.","Sonstige Regelsysteme und Steuerge-räte(Fluidik-Elemente und -Anlagen)",6990,"12","1200"]
["70000300","Datenverarbeitungsanlagen","Datenverarbeitungsanlagen, zentrale Rechenanlagen(EDV-Anlagen (zentrale), Rechenan-lagen für allgemeine Anwendung)",7000,"3","0300"]
["70100300","Satellitenrechner","Satellitenrechner, Datenfernstationen",7010,"3","0300"]
["70300300","dezentrale Rechenanlagen","Dedizierte, dezentrale Rechenanlagen, Prozessrechner(Rechenanlagen für besondere An-wendung)",7030,"3","0300"]
["70310300","Labor-EDV-Systeme","Labor-EDV-Systeme",7031,"3","0300"]
["70400300","Vektorrechner","Vektorrechner(Höchstleistungsrechner, Neuronale Netze (Rechner))",7040,"3","0300"]
["70500300","Rechner Nukleaarmedizin","Spezielle Rechner für Radiologie Nuklearmedizin und Strahlentherapie(Bildarchivierungs- und Kommunika-tionssysteme in der Medizin (PACS), Radiologie-Informationssysteme (RIS), Strahlentherapie-Informationssysteme)",7050,"3","0300"]
["70600300","Analog-,Hybrid-Rechenanl.","Analog-, Hybrid-Rechenanlagen",7060,"3","0300"]
["70700300","Arbeitsplatzrechner","Arbeitsplatzrechner, PersonalcomputerServerstationen (Rechner-), Workstations (EDV-)",7070,"3","0300"]
["70800300","Baugruppen EDV","Zentrale Baugruppen für EDV-Anlagen (außer 7100-7490)(Array-Prozessoren)",7080,"3","0300"]
["71000300","Arbeitsspeicher","Arbeitsspeicher, RAM(Halbleiterspeicher (außer Festspeicher, ROM 7110), Memory Expansion, RAM-Speicherplatinen)",7100,"3","0300"]
["71100300","Festspeicher","Festspeicher (für Mikroprogramme) ROM, PROM(Parameterspeicher, Programmspeicher, Mikroprogrammspeicher)",7110,"3","0300"]
["71200300","Speichereinheiten,opt.","Optische Speichereinheiten und Steuergeräte (EDV)(ECD-Brenner (EDV), Steuergeräte für optische Speichereinheiten (EDV)",7120,"3","0300"]
["71300300","Magnetplatteneinheiten","Magnetplatteneinheiten und Steuerge-räte(Festplattenspeichereinheiten, Flop-py-Disc-Einheiten)",7130,"3","0300"]
["71400300","Magnetbandgeräte,digital","Digital-Magnetbandgeräte und Steu-ergeräte(Magnetbandspeichergeräte (digital), Magnetbandsteuereinheiten)",7140,"3","0300"]
["71500300","Magnetbandgeräte,analog","Analog-Magnetbandgeräte und Zube-hör (außer 6710 und 6750)(Eich- und Justiergeräte für Magnet-bandgeräte, Impulscodiergeräte (ana-log und PCM))",7150,"3","0300"]
["71700300","Transientrecorder","Transientrecorder, digitale Signal-speicher(Transient Digitizer (Multidioden-Bildspeicherröhre)",7170,"3","0300"]
["71800700","Datenträger EDV","Datenträger für EDV(CD-Platten (EDV-), Disketten für optische Speichereinheiten, Magnetbänder und -kassetten für EDV)",7180,"7","0700"]
["71900500","Datenspeicher,sonst.","Sonstige Datenspeicher (außer 7100-7180)(Elektronenoptische Datenspeicher)",7190,"5","0500"]
["72000300","Datensichtgeräte","Datensichtgeräte, Eingabetastaturen, Bildschirmterminals(Alphanumerische Displays, Drucker-terminals, Graphische Terminals (au-ßer interaktive graphische Systeme 7460), Tastaturen (EDV-)",7200,"3","0300"]
["72100300","Zifferndrucker","Zifferndrucker, Blattschreiber, Mat-rixdrucker(Fernschreiber (für EDV), Nadeldru-cker, Thermodrucker)",7210,"3","0300"]
["72200500","Lochkartenleser","Lochkartenleser, -stanzer",7220,"5","0500"]
["72300500","Lochstreifenleser","Lochstreifenleser, -stanzer",7230,"5","0500"]
["72400300","Zeilendrucker","Zeilendrucker, Schnelldrucker(Laserdrucker, Lineprinter)",7240,"3","0300"]
["72600300","Photofilmausgabeeinheiten","Photofilmausgabeeinheiten, COM(Bildausgabegeräte (Photo-Write-Systeme), Mikrofilmausgabegeräte (EDV)",7260,"3","0300"]
["72700300","Hard-Copy-Geräte","Hard-Copy-Geräte",7270,"3","0300"]
["72800300","Belegleser","Belegleser(Klarschriftleser (OCR), Scanner (EDV))",7280,"3","0300"]
["72900300","Ein-/Ausgabe-Einheiten,so","Sonstige Ein-/Ausgabe-Einheiten(Kassetten-Lese- und -Schreibeinheiten (digital)",7290,"3","0300"]
["73000300","Prozessperipherie","Prozessperipherie, Datenübertragung (außer 6000-6990, 7200-7290, 7310-7410)(Bus-Extender, Unibus-Extender (CAMAC), E/A-Steuereinheiten (Da-tenübertragung), Netzkomponenten (Rechnernetze, außer Rechner 7070, 7030))",7300,"3","0300"]
["73100300","Standard-Interfaces","Standard-Interfaces (A/D- und D/A-Wandler-Baugruppen)(A/D-Wandler-Baugruppen (Prozessrechner, CAMAC), D/A-Wandler-Baugruppen (Prozessrechner, CAMAC), IEC-Standard-Schnittstellen, Interfaces, Schnittstellen-Anpaßgeräte, -Wandelgeräte)",7310,"3","0300"]
["73201800","Messstellenumschaltgeräte","Messstellenumschaltgeräte, Data-Logger, Multiplexer(I/O-Expander, Interrupt-Module, -Register (EDV), Messstellenwähler, -abtaster, -steuergeräte, Relaisansteu-erung)",7320,"18","1800"]
["73301800","Mess- u.Prüfautomaten","Mess- und Prüfautomaten, Logik-prüfgeräte(Digitale Logikanalysatoren, Funkti-onsprüfgeräte für integrierte Schalt-kreise und Leiterplatten, Kartentester, Leiterplatten-Prüfgeräte, Schnittstel-len-Testgeräte)",7330,"18","1800"]
["73400500","Signalstrukturanalysgerät","Signalstruktur-Analysengeräte, Statis-tikgeräte (außer 7330, 7430 und 7500-7530)(Analog-Klassiergeräte (außer 7500-7530), Pegelhäufigkeitszähler, Struk-turanalysatoren (Signalstruktur, statis-tische Kopplung))",7340,"5","0500"]
["73600400","Umsetzer","Umsetzer (Konverter)(Modems, Steuerschaltungen, Steuer-geräte für EDV Ein/Ausgabe (außer 7200-7290))",7360,"4","0400"]
["73700400","Bandlauf-Steuergeräte","Bandlauf-Steuergeräte und Zeitcode-Generatoren(Echtzeit-Uhren (Rechnersteuerung), Taktgeber, -generatoren)",7370,"4","0400"]
["74000300","graph.Datenerfassungsger.","Graphische Datenerfassungsgeräte(3D-Scanner, Digitalisiergeräte)",7400,"3","0300"]
["74100800","Kurvenabtaster","Kurvenabtaster (automatisch), Kur-ven-Digitalisiergeräte(Diagrammabtaster (automatisch), Kurvenfolger (opto-Elektronisch))",7410,"8","0800"]
["74300500","Bildauswertesysteme","Analytische Bildauswertesysteme(Bildanalyse- und -klassiergeräte, Teilchengröße-Analysatoren (optische manuelle Bildanalyse))",7430,"5","0500"]
["74500500","Ausgabeeinheiten,graph.","Graphische Ausgabeeinheiten, Plot-ter, rechnergesteuerte Zeichenma-schinen(Digital-Plotter, Graviereinrichtungen (Zeichenmaschinen-), rechnergesteu-ert)",7450,"5","0500"]
["74600500","Bildschirmsysteme,intera.","Interaktive graphische Bildschirmsys-teme(Bildverarbeitungs- (Ausgabe-) Sys-teme, Virtuel Reality-Systeme)",7460,"5","0500"]
["74700500","CAD-, CAM-Systeme","CAD-, CAM-Systeme (computer-aided-design, -manufacturing)(Konstruktionsplätze (rechnergesteu-ert, interaktiv)",7470,"5","0500"]
["74800500","Fertigungssysteme,integr.","Integrierte Fertigungssysteme(CIM-Systeme (computer-integrated-manufacturing), PPS-Systeme (Pro-duktionsplanung))",7480,"5","0500"]
["74900300","Datenverarbeitung,graph.","Sonstige Geräte für graphische Da-tenverarbeitung (außer 7400-7460)",7490,"3","0300"]
["75000500","Mittelwertrechner","Mittelwertrechner und Vielkanalana-lysatoren (außer Strahlungsmessgerä-te 0260)(Averager, Signal-Averager (Mittel-wertrechner), Multi-Channel-Analyzer (außer Strahlungsmessplät-ze 0260))",7500,"5","0500"]
["75200500","Korrelationsrechner","Korrelationsrechner, Korrelations-messgeräte(Autokorrelations-Rechner, -Zusätze, Echtzeit-Korrelatoren)",7520,"5","0500"]
["75300500","Fourier-Analysatoren","Fourier-Analysatoren, Kurven-Analysatoren und -Synthetisatoren(Fourier-Transform-Rechner, Kur-vensynthetisatoren (Analoge Kurven-synthese und -Analyse)",7530,"5","0500"]
["75400800","Kleinrechner","Kleinrechner (Tischrechner, Taschen-rechner)",7540,"8","0800"]
["75600500","Programmierhilfen","Programmierhilfen, Programmierge-räte(Programmiergeräte für Speicher (PROM))",7560,"5","0500"]
["75901000","Rechengeräte,sonst.","Sonstige Rechengeräte und mathematische Instrumente (Rechengeräte, sonstige (Addiergeräte, Rechenschieber))",7590,"10","1000"]
["76000600","Betriebssysteme","Betriebssysteme",7600,"6","0600"]
["76100600","Compiler-,Interpreter-Sof","Compiler-, Interpreter-Software",7610,"6","0600"]
["76200600","Netzwerk-Software","Netzwerk-Software",7620,"6","0600"]
["77000300","Datenbanksysteme","Datenbanksysteme",7700,"3","0300"]
["77100300","Textverarbeitungssoftware","Textverarbeitungssoftware",7710,"3","0300"]
["77200300","Wissenschaft. Programme","Wissenschaftliche Programme",7720,"3","0300"]
["77300300","Graphik-Programme","Graphik-Programme",7730,"3","0300"]
["77900300","Anwendersoftware","Anwendersoftware (außer 7700-7730)",7790,"3","0300"]
["80001100","Gebläse, Lüfter","Gebläse, Lüfter(Axialgebläse, -Lüfter, Radialgebläse, -lüfter)",8000,"11","1100"]
["80101000","Gasverdichter,Kompressor.","Gasverdichter, Kompressoren(Axialverdichter, Kolbenverdichter)",8010,"10","1000"]
[{"$f":"D642&F642","v":"80200800"},"Pumpen für Flüssigkeiten","Pumpen für Flüssigkeiten (Kanalradpumpen, Kolbenpumpen, Zahlradpumpen)",8020,"8","0800"]
["80300800","Hochdruckpumpen","Hochdruckpumpen (für Gase und Flüssigkeiten) über 200 bar, Druckverstärker (Gasumlaufpumpen, Membrankom-pressoren (Hochruck-)",8030,"8","0800"]
["80400800","Dosierpumpen","Dosierpumpen, Schlauchpumpen(Hochdruck-Dosierpumpen (außer Chromatographie 1380), Peristalti-sche Pumpen)",8040,"8","0800"]
["80500800","Pumpen,spez.","Spezielle Pumpen (außer 3700, 3710 und 8000-8040) Elektrodynamische Pumpen, Laugen-pumpen, Induktionspumpen (Flüs-sigmetall)",8050,"8","0800"]
["80600800","Be-u.Entwässerungsanlag.","Be- und Entwässerungsanlagen (Regner, Garten-Beregnungsgeräte)",8060,"8","0800"]
["80701000","Armaturen,Ventile,Schieb.","Armaturen, Ventile, Schieber (außer 8170, 8180 und 8270) (Kondensatableiter)",8070,"10","1000"]
["80900600","Pumpen,sonst.","Sonstige Pumpen und Kompressoren, Zubehör (außer 8000-8070) (Pulsatoren (für Extraktionskolonnen))",8090,"6","0600"]
["81000600","Vakuumpumpen,mech.","Mechanische Vakuumpumpen (Vor-pumpen) (Drehkolbenpumpen, Rotationspumpen)",8100,"6","0600"]
["81100600","Treibmittelpumpen","Treibmittelpumpen (Dampfstrahl, Diffusion) (Ejektoren, Wasserdampf-strahlpumpen)",8110,"6","0600"]
["81200600","Sorptionspumpen","Sorptionspumpen, Ionenpumpen einschl. Netzgeräte (Ionen-Zerstäuberpumpen, Titan-Zerstäuberpumpen)",8120,"6","0600"]
["81300600","Turbomolekularpumpen","Turbomolekularpumpen",8130,"6","0600"]
["81400600","Vakuumpumpen,spez.","Spezielle Vakuumpumpen (Flüssig-keitsring-Vakuumpumpen)",8140,"6","0600"]
["81600600","Vakuumpumpstände","Vakuumpumpstände (mit Vor- und Hochvakuumpumpen) (Säulenpump-stände, Turbomolekularpumpstände)",8160,"6","0600"]
["81700600","Vakuumventile","Vakuumventile (Dosierventile für Hochvakuumanlagen, Gaseinlassven-tile)",8170,"6","0600"]
["81800600","Vakuumbauteile","Vakuumbauteile, Rezipienten, Dampfsperren (Absorptionsfallen, Feinvakuum-Absorptionsfallen, Kon-densatoren, Dampfkondensatoren für Vakuumanlagen)",8180,"6","0600"]
["81900600","Vakuumpumpen,sonst.","Sonstige Vakuumpumpen und Zube-hör (außer 8100-8180)",8190,"6","0600"]
["82000500","Reaktionsgefässe","Reaktionsgefäße für Hochdruck, Au-toklaven(Heizautoklaven, Rührautoklaven)",8200,"5","0500"]
["82100500","Druckbehälter","Druckbehälter (außer Gasflaschen)(Behälter, Gasbehälter (Experimen-tieranlagen, außer Hochdruck: 8200 und Vakuumanlagen 8300-8330)",8210,"5","0500"]
["82200500","Druckluftanlagen","Druckluftanlagen, Druckluftversor-gung (Air Conditioner, Luftaufberei-tung)",8220,"5","0500"]
["82301000","Helium-Rückgewinnungsanl.","Helium-Rückgewinnungsanlagen",8230,"10","1000"]
["82400700","Hydraulikanlagen","Hydraulikanlagen (ohne Pressen)(Hydraulikaggregate (Pumpen mit Antriebsmotore und Druckspeicher)",8240,"7","0700"]
["82601000","Hochdruckanlagen","Hochdruckanlagen",8260,"10","1000"]
["82700500","Hochdruckventile","Hochdruckventile und Bauteile für Hochdruckanlagen (Explosions-schutz-Anlagen (Abschirmung, Dämmung), Sicherheitsventile (spe-ziell für Hochdruckanlagen))",8270,"5","0500"]
["82800500","Gasflaschen u.Zubehör","Gasflaschen und Zubehör(Druckminderer für Gasflaschen, Stahlflaschen für Gase)",8280,"5","0500"]
["82900500","Druckanlagen,sonst.","Sonstige Druckanlagen (außer 8200-8280)",8290,"5","0500"]
["83000600","Labor-Vakuumeinricht.","Labor-Vakuumeinrichtung (Vakuum-kammern)",8300,"6","0600"]
["83100600","UHV-Anlagen zur Analytik","UHV-Anlagen zur Analytik",8310,"6","0600"]
["83200600","Ultrahochvakuumanlagen","Ultrahochvakuumanlagen 84(Weltraum-Simulationsanlagen, Raum-Simulationskammern)",8320,"6","0600"]
["83300500","Vakuumbedampfungsanlagen","Vakuumbedampfungsanlagen  und -präparieranlagen für Elektronenmik-roskopie(Argon Ionenkanonen (Präparation für Elektronenmikroskopie), Ionen-Ätz- und -Abdünnanlagen (für Elekt-ronenmikroskopie), Kathodenzerstäu-ber-Anlagen))",8330,"5","0500"]
["83400800","Gefriertrocknungsanlagen","Gefriertrocknungsanlagen(Lyophilisatoren)",8340,"8","0800"]
["83500500","Manometer,Vakuummeter","Manometer und Vakuum-Meter (mechanisch und elektromechanisch), Druck- und Vakuum-Regelgeräte(Absolutdruck-Aufnehmer, -messgeräte, Druckaufnehmer für Flüssigkeiten und Gase, Druckwagen, Ma-nometer, Mechanische Vakuummeter)",8350,"5","0500"]
["83600600","Vakuummeter","Vakuummeter für Hochvakuum, UHV, thermische Vakuummeter, Io-nisationsvakuummeter(Pirani-Vakuummeter, Wärmelei-tungs-Vakuummeter)",8360,"6","0600"]
["83700500","Lecksucher","Lecksucher(Massenspektrometer-Lecksuchergeräte)",8370,"5","0500"]
["83800300","Schichtdickenmessgeräte","Schichtdickenmessgeräte, Verdampfungs- und Steuergeräte (für Vakuumbedampfung, außer 8330)(Elektronenstrahl-Verdampfungsquellen, Kohlebedampfungs-Einrichtungen)",8380,"3","0300"]
["83900600","Vakuumgeräte,sonst.","Sonstige Vakuumgeräte und -anlagen (außer 8300-8380)(Ausheizöfen (für Hochvakuumanla-gen), Zubehörteile zu Hochvakuum-anlagen)",8390,"6","0600"]
["84000500","Kammeröfen,Muffelöfen","Kammeröfen, Muffelöfen, Rohröfen(Diffusionsöfen, Elektro-Rohröfen, Härteöfen, Tiegelöfen)",8400,"5","0500"]
["84100800","Brenner","Brenner und spezielle Wärmegeräte; Zünd- und Überwachungsgeräte(Auftaugeräte, Flammenüberwa-chungsgeräte, Ölbrenner)",8410,"8","0800"]
["84200800","Öfen,spez.","Spezielle Öfen (Induktions-, Lichtbo-genheizung, Vakuumöfen)(Mikrowellenöfen und -wärmegeräte (außer 3950 und 9500), Plasmaöfen, Induktionswärmeanlagen, Schmelz-öfen)",8420,"8","0800"]
["84300800","Lufterhitzer","Lufterhitzer, Luftheizgeräte (transpor-tabel), Infrarotheizgeräte (Heizgeräte (Infrarot-), Wärmestrahler (außer für Therapie 3950))",8430,"8","0800"]
["84401500","Dampferzeuger","Dampferzeuger (für Laboratorien), Dämpfanlagen",8440,"15","1500"]
["84500500","Trocknungsanlagen","Trocknungsanlagen, Exsikkatoren(Laborglas-Trockner, Lack-Trocken- und Einbrenn-Öfen, Vakuumtrocken-schränke)",8450,"5","0500"]
["84700500","Bad-u.Einhängethermostat.","Bad- und Einhängethermostaten, Temperiergeräte(Öfen (Thermostaten) für optische Bauelemente, Umwälzthermostate, Wasserbäder (Thermostate))",8470,"5","0500"]
["84800500","Laborheizgeräte","Laborheizgeräte und Brenner(Gasbrenner (Labor-), Bunsenbren-ner, Wasserkocher, elektrische (Labor-))",8480,"5","0500"]
["84900800","Öfen,sonst.","Sonstige Öfen und Wärmegeräte (außer 8400-8480)(Brennöfen (Keramik-, außer 8400, Härte- und Abschreckanlagen, Här-temaschinen, Wärmeaustauscher))",8490,"8","0800"]
["85000500","Kältemaschinen bis-100 °C","Kältemaschinen (bis -100 Grad C), Eiserzeuger, Rückkühlanlagen(Kälteanlagen (mit geschlossenem Kreislauf), Laboreisautomaten, Tro-ckeneiserzeuger)",8500,"5","0500"]
["85200500","Kryostaten","Kryostaten, Tauchkühler (bis -100 Grad C)(Eintauchkühler, Kältethermostaten, Thermoelektrische Kühlgeräte, Pel-tierkühler)",8520,"5","0500"]
["85300500","Kältemaschine, u -100 °C","Kältemaschinen und Refrigeratoren (bis -100 Grad C)(Cyrogeneratoren, Cryocooler (mit geschlossenem Kreislauf))",8530,"5","0500"]
["85400700","Kühlschränke","Kühlschränke und Gefriertruhen (bis -100 Grad C)(Tiefgefriertruhen, -Schränke, Tief-kühltruhen)",8540,"7","0700"]
["85400700","Tiefgefrieranlagen","Tiefgefrieranlagen (flüssiger Stick-stoff)(Einfrierautomaten)",8540,"7","0700"]
["85500700","Kryostaten,spez.","Spezielle Kryostaten (für tiefste Tem-peraturen)(Helium-Kryostaten, Stickstoff-Kryostate)",8550,"7","0700"]
["85601000","Gasverflüssigungsanlagen","Gasverflüssigungs-, Luftzerlegungs-anlagen(Luftverflüssigungsanlagen)",8560,"10","1000"]
["85701000","Heliumverflüssigungsanla.","Helium- und Wasserstoff-Verflüssigungsanlagen",8570,"10","1000"]
["85802000","Behälter flüss.Gase","Behälter für flüssige Gase(Helium-Transportkannen, Kaltverga-ser)",8580,"20","2000"]
["85901500","Kälteanlagen,sonst.","Sonstige Kälteanlagen und -geräte (außer 8500-8580)(Gaskühler (für Kompressoren und Windkanäle), Kälteanlagen-Zubehör, Wärmeaustauscher (Kältetechnik))",8590,"15","1500"]
["86000500","Thermometer","Thermometer, (Berührungsthermome-ter), allgemein (außer für Geophysik 0450, 0510 und Medizin 3910)(Fernthermometer, Oberflächenther-mometer (elektronisch) mit Tempera-turfühler, Thermometer (elektronisch) mit Temperaturfühler)",8600,"5","0500"]
["86100500","Thermometer,spez.","Spezielle Thermometer für tiefste Temperaturen (einschließlich elektro-nischem Anzeigegerät)",8610,"5","0500"]
["86200500","Strahlungsthermometer","Strahlungsthermometer, Pyrometer, Thermosonden(Infrarot-Thermosonden, Infrarot-Kameras (außer 3910), Radiometer (Infrarot), Strahlungsthermometer (außer Aktinometer 0540), Wärme-bild-Kameras (außer Medizin 3910))",8620,"5","0500"]
["86400500","Kalorimeter","Kalorimeter und Heizwertschreiber (außer 8650, 8660)(Heizwertmessgeräte, Wärmemengen-Mess- und Regelgeräte)",8640,"5","0500"]
["86500500","Kalorimeter,spez.","Spezielle Kalorimeter(Dilatometer, Thermogravimetriege-räte)",8650,"5","0500"]
["86600500","Thermoanalysegeräte","Thermoanalysegeräte (DTA, DTG), Dilatometer (Differential-Scanning-Kalorimeter (DSC), Mikrokalorime-ter)",8660,"5","0500"]
["86700500","Temperaturregler","Temperaturregler (Temperatur-Zeit-Programmregler, Thermostate)",8670,"5","0500"]
["86800500","Siedepunktmessgeräte","Geräte zur Messung von Schmelz-punkt, Siedepunkt, Tropfpunkt(Gleichgewichtsapparaturen (Flüssig-keits-Dampf-Gleichgewicht), Siede-punktbestimmungsgeräte)",8680,"5","0500"]
["86900500","Messgeräte,sonst.,therm.","Sonstige Messgeräte für thermische Größen (außer 8600-8680)(Temperaturmesser-Zubehör, Wärme-leitfähigkeits-Messgeräte (außer für Chromatographie 1380))",8690,"5","0500"]
["87000300","Längen-u.Dickenmessgeräte","Mechanisch abtastende Längen- und Dickenmessgeräte, Messmaschinen(Dickenmessgeräte, mechanisch, Ko-ordinaten-Messmaschinen (mecha-nisch), Schiebelehren)",8700,"3","0300"]
[{"$f":"D706&F706","v":"87100500"},"Längenmessgeräte,opt.","Optische Längenmessgeräte (außer 0620-0670) und Messmikroskope 5030) (Elektrooptische Längen- und Wegmessgeräte, Kathetometer, Laser-Telemetrie-Systeme)",8710,"5","0500"]
["87200500","Längenmessgeräte,elekt.","Elektronische und pneumatische Län-genmessgeräte, Wegaufnehmer und Anzeigegeräte (Formprüfgeräte, Formtester, Rundheitsmessgeräte (e-lektronisch-mechanisch, pneuma-tisch), Messverstärker (Trägerfre-quenz-) und Messbrücken für induk-tive und kapazitive Aufnehmer, Stel-lungsmessgeräte, -messumformer)",8720,"5","0500"]
["87300500","Winkelmessgeräte","Winkelmessgeräte, Geniometer, Drehgeber (Rotationsgeber, Winkel-Codierer, -Schrittgeber)",8730,"5","0500"]
["87400500","Dehnungsmessgeräte","Dehnungsmessgeräte und -messbrücken (DMS-, Dehnungsmess-streifen, -messbrücken, Kompensato-ren, manuell, automatisch (digital) für Dehnungsmessstreifen)",8740,"5","0500"]
["87600500","Planimeter","Planimeter, mechanische Integraphen(Integraphen, mechanisch)",8760,"5","0500"]
["87700500","Füllstandsmessgeärte","Füllstandsmessgeräte (kapazitiv, Kernstrahlung, Ultraschall)(Wasserstandszeiger, -gläser)",8770,"5","0500"]
["87800500","Volumenmessgeräte","Volumenmessgeräte (außer 1900-1920) (Eichgefäße, Pyknometer)",8780,"5","0500"]
["87900500","Messgeräte,sonst.","Sonstige Messgeräte für Länge, Flä-che, Rauminhalt (Flächenmessgeräte (außer 1640, 5230, 7430 und 8760), Längenmessgeräte (außer 0620-0670 und 8700-8720))",8790,"5","0500"]
["88000500","Zeitnormale","Zeitnormale, Atomuhren(Astronomische Uhren, Funk-Uhren, über Zeitzeichen gesteuerte Uhren)",8800,"5","0500"]
["88100500","Uhren,elekt.","Elektronische Uhren (außer 6150 und 7370)(Quarzuhren)",8810,"5","0500"]
["88200500","Uhren,mech.","Mechanische Präzisionsuhren, Chro-nometer",8820,"5","0500"]
["88300500","Laboruhren","Laboruhren (Kurzzeitmesser, Stopp-uhren)",8830,"5","0500"]
["88400500","Schaltuhren","Schaltuhren, Zeitsteuergeräte(Kontaktuhren, Zeitschalter)",8840,"5","0500"]
["88600500","Geschwindigkeitsmessgerät","Geschwindigkeitsmessgeräte (außer 0470, 0530, 1920 und 2440)(Anemometer (Strömungsmesser), Tachometer, Ultraschall-Strömungs- und Geschwindigkeitsmesser (außer 1920 und 3010))",8860,"5","0500"]
["88700500","Drehzahlmessgeräte","Drehzahlmessgeräte, Umdrehungs-zähler(Drehzahlaufnehmer, -sensoren, Ta-chogeneratoren)",8870,"5","0500"]
["88900500","Messgeräte,sonst.","Sonstige Messgeräte für Zeit, Ge-schwindigkeit, Drehzahl (außer 8800-8870)(Uhren-Zubehör, Uhren-Prüfgeräte)",8890,"5","0500"]
["89001100","Industrie-u.Handelswaagen","Industrie- und Handelswaagen(Abfüll- und Absackwaagen, Dezi-malwaagen, Wiegeanlagen)",8900,"11","1100"]
["89101300","Laborwaagen","Laborwaagen, Präzisionswaagen(Briefwaagen, Torsionswaagen)",8910,"13","1300"]
["89201300","Analysewaagen","Analysewaagen (Makro-, Mikro), mechanisch und elektronisch(Mikrowaagen, Vakuummikrowaa-gen)",8920,"13","1300"]
["89300800","Waagen,spez.","Spezielle Waagen (ferngesteuert, re-gistrierend)(Betten-Waagen), Dosierwaagen)",8930,"8","0800"]
["89500500","Beschleunigungsmessgeräte","Beschleunigungsmessgeräte (außer Seismometer)(AccelerometermBrems- (Beschleunigungs-) Messge-räte, Erschütterungsmesser (außer Seismometer 0420))",8950,"5","0500"]
["89600500","Auswuchtmaschinen","Auswuchtmaschinen, Unwuchtmess-einrichtungen",8960,"5","0500"]
["89700500","Kraftmessgeräte","Kraftmessgeräte (einschl. elektroni-schem Anzeigegerät)(Drucktöpfe (Bodendruckmessung), Dynamometer, Kraftmessdosen, Kraftaufnehmer, Seilzugwaagen)",8970,"5","0500"]
["89800500","Messgeräte,Drehmoment","Messgeräte für Drehmoment und mechanische Leistung (Messwellen, An-zeigegeräte)(Indikatoren (Druck, Maschinenleis-tung), Leistungsmessgeräte (Maschi-nenleistung, außer Wattmeter 6440))",8980,"5","0500"]
["89900500","Messgeräte,sonst.","Sonstige Messgeräte für Masse und Kraft (außer 8900-8980)",8990,"5","0500"]
["90000000","Grundstücke","Grundstücke (DIN 276 1.0.)",9000,"./.","0000"]
["90100000","Erschließung","Erschließung (DIN 276 2.2., außer 902, 903, 907 und 980-982)",9010,"./.","0000"]
["90201900","Vekehrsanlagen","Verkehrsanlagen (DIN 276 5.7.)(Boots-Stege, Flugplätze, Gleisanla-gen, Eisenbahnmaterial (ortsfest), Straßen, Verkehrszeichen, -signale)",9020,"19","1900"]
["90301500","Geländegestaltung","Geländegestaltung, gärtnerische Anlagen, Sportanlagen(Gartenanlagen, Grünflächen, Schwimmbecken, Sportplätze, Sportanlagen)",9030,"15","1500"]
["90403300","Gebäude","Gebäude (mit Wohn- und Arbeitsräumen, außer 906)",9040,"33","3300"]
["90500500","Einzäunungen","Einzäunungen, Einfriedungen (DIN 276 5.1.)(Absperreinrichtungen, Zäune (außer Elektro-Weidezäune 4340))",9050,"5","0500"]
["90601600","Baracken,Maschinenhallen","Baracken, Gewächshäuser, Maschinenhallen",9060,"16","1600"]
["90701900","Außenbeleuchtung","Außenbeleuchtung(Flugsicherungs-Beleuchtung)",9070,"19","1900"]
["90900000","Anlagevermögen,unbewegl.","Unbewegliches Anlagevermögen (außer 9000-9080)",9090,"./.","0000"]
["91001300","Tische,allg.","Tische, allgemein (Abstelltische (auf Rollen), Arbeitstische, Besprechungstische, Zeichentische)",9100,"13","1300"]
["91101300","Schreibtische","Schreibtische(Schreibmaschinentische)",9110,"13","1300"]
["91201300","Sitzmöbel","Sitzmöbel (Arbeitsstühle, Bänke, Sessel)",9120,"13","1300"]
["91301300","Betten","Betten und Liegemöbel (außer Kran-kenbetten 9300)",9130,"13","1300"]
["91400600","Schränke,Regale","Schränke, Regale, Bibliothekseinrichtungen (außer Laborschränke 9480) (Aktenschränke, Einbauschränke, Holzregale, Schrankwände)",9140,"6","0600"]
["91501000","Garderobeneinricht.","Garderobeneinrichtungen(Kleiderständer, Spiegel (für Garderobenräume))",9150,"10","1000"]
["91600900","Kleinmöbel","Kleinmöbel, Aktenständer, Pulte (Aktenwagen, Bücherborde, Podien, Stellwände, Vitrinen)",9160,"9","0900"]
["91700400","Leuchten,bewegl.","Bewegliche Leuchten und spezielle Beleuchtungskörper(Handlampen, Schreibtischlampen, Stehlampen)",9170,"4","0400"]
["91801500","Kunstgegenstände","Kunstgegenstände, Bilder, sakrale Gegenstände, Fahnen, Flaggen",9180,"15","1500"]
["91900800","Mobiliar,allg.","Sonstiges allgemeines Mobiliar und Raumausstattung(Abfertigungsschalter, Einrichtungs-gegenstände, Teppiche, Felle, Vor-hänge, Wahlkabinen, -urnen)",9190,"8","0800"]
["92000900","Schreibmaschinen","Schreibmaschinen",9200,"9","0900"]
["92100600","Schreib- u.Org.automaten","Schreib- und Organisationsautomaten, Adressiermaschinen(Beschriftungsmaschinen (außer 2070 für Metall), Magnetkartenschreiber, Prägemaschinen (Büro-), Stanzma-schinen (Büro-))",9210,"6","0600"]
["92200600","Buchungsmaschinen","Buchungsmaschinen, Registrierkas-sen, Frankiermaschinen",9220,"6","0600"]
["92300800","Diktiergeräte","Diktiergeräte",9230,"8","0800"]
["92401300","Karteigeräte","Karteigeräte, Registraturen(Hängeregistraturen, Karteischränke)",9240,"13","1300"]
["92500800","Zeichenmaschinen","Zeichenmaschinen und -geräte (außer rechnergesteuert 7450)(Reißzeuge, Reißbretter, Zeichengerä-te und -hilfsmittel)",9250,"8","0800"]
["92600700","Kopiergeräte","Kopiergeräte, Lichtpausmaschinen (außer Druckmaschinen und Hilfsgeräte 225 und 226)(Büro-Kopiergeräte, Off-Set-Folienbelichtungsanlagen)",9260,"7","0700"]
["92800500","Tresore","Tresore, spezielle Kassenausrüstung",9280,"5","0500"]
["92900800","Büroeinricht.,spez.","Sonstige spezielle Büroeinrichtung(Aktenvernichter,Büro- (Organisations-)Zubehör, Ku-vertiermaschinen, Stempel)",9290,"8","0800"]
["93000800","Krankenbetten","Krankenbetten",9300,"8","0800"]
["93101000","Krankentransportwagen,","Krankentransportwagen, Tragen",9310,"10","1000"]
["93201000","Transportmittel Medikame.","Transportmittel für Medikamente, Speisen, Wäsche in Kliniken",9320,"10","1000"]
["93301000","Spezialstühle","Spezialstühle für Kranke(Krankenstühle, Rollstühle (außer Behinderten-Fahrzeuge 2550))",9330,"10","1000"]
["93401000","Spezialtische","Spezialtische, Nachttische",9340,"10","1000"]
["93501000","Medikamentenschränke","Medikamentenschränke, Apotheken-einrichtung",9350,"10","1000"]
["93700800","Sterilisationsanlagen","Sterilisations- und Desinfektionsanlagen(Sterilisatoren)",9370,"8","0800"]
["93901000","Klinikeinricht.allg.","Sonstige allgemeine Klinikeinrich-tung (außer 9300-9370)",9390,"10","1000"]
["94001400","Werktische","Werktische, Hobelbänke",9400,"14","1400"]
["94101400","Werkzeugschränke","Werkzeugschränke und -wagen, Montagekästen und -wagen",9410,"14","1400"]
["94201100","Leitern,Gerüste","Leitern, Gerüste, Gestelle , Montage-vorrichtungen(Baugerüste, Hebebühnen, Streben, Stützen)",9420,"11","1100"]
[{"$f":"D770&F770","v":"94300800"},"Transportkarren","Transportkarren, Hebe- und Kippvor-richtungen(Handwagen, Schubkarren)",9430,"8","0800"]
["94401000","Behälter,Wannen,Fässer","Behälter, Wannen, Fässer(Gebinde, Korbflaschen, Kanister)",9440,"10","1000"]
["94501400","Labortische","Labortische und -aufbauten(Fahrbare Experimentiertische, Mik-roskopiertische) ",9450,"14","1400"]
["94601400","Absauganlagen","Absauganlagen, Laborabzüge (außer Isotopenabzüge 0320)(Luft- und Gasabsauganlagen)",9460,"14","1400"]
["94701400","Laborspülmaschinen","Labor-Spülmaschinen und -Reinigungsgeräte (Entfettungsanlagen (Dampf-, Ultra-schall-), Hochdruck-Reiniger, Heiß-wasser-Hochdruckreiniger, Reini-gungsgeräte (Labor-))",9470,"14","1400"]
["94801000","Laborschränke","Laborschränke, Chemikalien-Schränke",9480,"10","1000"]
["94901400","Werkstattausrüst.,sonst.","Sonstige Werkstatt- und Laborausrüstung, Werkzeuge(Kabeltrommel, Laborcontainer, Schraubstöcke)",9490,"14","1400"]
["95000700","Koch-,Back-u.Bratanlagen","Koch-, Back- und Bratanlagen(Friteusen, Groß-, Herde)",9500,"7","0700"]
["95100700","Küchenmaschinen","Küchenmaschinen und spezielle Kü-chengeräte(Arbeitswannen (Küchen-), Elektri-sche Küchengeräte (außer 9500, 9530 und 9559), Fleischwölfe)",9510,"7","0700"]
["95300700","Geschirrspülgeräte","Geschirrspül- und -trockengeräte(Spülautomaten (Küchen-), Trockner für Geschirr (Küchen-))",9530,"7","0700"]
["95400800","Ladeneinrichtungen","Ladeneinrichtungen(Theken)",9540,"8","0800"]
["95500700","Buffeteinrichtungen","Büffeteinrichtungen, Getränkezube-reitung, Kühlvitrinen(Anrichten (Küchen-), Getränkespen-der, Automaten, Speisenwärmer, Transportbänder für Büffeteinrich-tungen)",9550,"7","0700"]
["95600500","Verkaufsautomaten","Verkaufsautomaten, Geldwechselau-tomaten",9560,"5","0500"]
["95701000","Servierwagen","Servierwagen",9570,"10","1000"]
["95800800","Kühlraume Lebensmittel","Kühlraume und Vorratslager für Le-bensmittel",9580,"8","0800"]
["95900700","Kücheneinrichtungen,sons.","Sonstige Küchen- und Kasino-Einrichtungen",9590,"7","0700"]
["96001000","Waschmaschinen u.-automa.","Waschmaschinen und -automaten",9600,"10","1000"]
["96100800","Wäschetrockengeräte","Wäschetrockengeräte",9610,"8","0800"]
["96200500","Bügelgeräte u.-maschinen","Bügelgeräte und -maschinen (Heißmangeln)",9620,"5","0500"]
["96300800","Nähmaschinen","Nähmaschinen (Haushalt-Nähmaschinen)",9630,"8","0800"]
["96400800","Arbeits-,Schutzkleidung","Arbeitskleidung, Dienstkleidung, Schutzkleidung",9640,"8","0800"]
["96500700","Raumpflegegeräte","Raumpflegegeräte (Staubsauger, Bohnermaschinen)",9650,"7","0700"]
["96700500","Warmwassererzeuger","Warmwassererzeuger (Speicher, Durchlauferhitzer, Badeöfen)(Heißwasserspeicher , -Boiler (außer 9830))",9670,"5","0500"]
["96800500","Einrichtung san. Räume","Einrichtungsgegenstände für sanitäre Räume und Geräte für Körperpflege(Badeeinrichtungen, -betriebsgeräte (außer spezielle medizinische Bäder 3960), Haarscheidemaschinen, sanitä-re Einrichtungsgegenstände)",9680,"5","0500"]
["96900500","Wäscherei,sonst.Geräte","Sonstige Geräte für Wäscherei und Reinigung(Käfigreinigungsmaschinen, Wäsche-kisten)",9690,"5","0500"]
["97001200","Lehrmittel","Lehrmittel, Diapositive, Lehrfilme (außer 6709-6799)(Filme, Schaubilder, Lehrtafeln)",9700,"12","1200"]
["97102000","Demonstrationsgeräte","Demonstrationsgeräte, Modelle",9710,"20","2000"]
["97202000","Musikinstrumente","Musikinstrumente und Zubehör(Elektrische Musikinstrumente,Metronome)",9720,"20","2000"]
["97300500","Wandtafeln,Kartenständer","Wandtafeln, Kartenständer, Projekti-onswände",9730,"5","0500"]
["97400800","Expeditions-u.Reiseausrü.","Expeditions- und Reiseausrüstung(Lagerausrüstungen (für Expeditio-nen), Reiseausrüstung, Überseekoffer, Zelte für Expeditionen)",9740,"8","0800"]
["97500800","Sportgeräte","Sportgeräte, TaucherausrüstungenTauchgeräte (außer Druckkammern 3970)",9750,"8","0800"]
["97600800","Konstruktions-u.Lehrbauk.","Konstruktions- und Lehrbaukästen",9760,"8","0800"]
["97802000","Sammlungen","Sammlungen",9780,"20","2000"]
["98001500","Stromversorgung","Stromversorgung und Niederspan-nungs-Installation(Niederspannungs-Installation (außer 2600-2690 und 9850))",9800,"15","1500"]
["98100800","Wasserversorgung","Wasserversorgung und -entsorgung (außer 1970)(Abwasseranlagen, -leitungen (außer 1550 und 1970),Brunnenanlagen (außer Springbrun-nen 9030))",9810,"8","0800"]
["98201000","Gasversorgung","Gasversorgung und Fernheizung (au-ßer 1100 und 1920)",9820,"10","1000"]
["98300800","Heizungs-u.Klimaanlagen","Heizungs- und Klimaanlagen, Lüf-tung, Klimakammern, fest installiert (außer 2870, 8480 und 9940)(Belüftungsanlagen,Luftbefeuchter,Ventilatoren,Zentralheizungsanlagen)",9830,"8","0800"]
["98401200","Schutzräume","Schutzräume und -ausrüstung",9840,"12",1200]
["98500800","Notbeleuchtungsanlagen","Notbeleuchtungsanlagen (außer 6010 und 6050)(Unterbrechungsfreie Stromversorgung (außer 2610, 6010 und 6050))",9850,"8","0800"]
["98601200","Feuerschutz-u.-meldeanla.","Feuerschutz- und -meldeanlagen, Blitzableiteranlagen(Brandmelder und -Anlagen, Lösch-geräte, Sprinkleranlagen (Feuer-schutz))",9860,"12","1200"]
["98700500","Feuerlöschgeräte","Feuerlöschgeräte und Feuerwehraus-rüstung(Trockenfeuerlöscher)",9870,"5","0500"]
["98800500","Geräte Erste Hilfe","Geräte für Erste Hilfe und Katastro-phen-Einsatz, Selbstretter(Atemgeräte, -masken (außer 3700), Sanitätsschränke, -kästen für erste Hilfe, Verbandskästen, Wiederbele-bungsgeräte (außer Narkose- und Be-atmungsgeräte 3700))",9880,"5","0500"]
["98900800","Versorgungsanlagen,sonst.","Sonstige Versorgungsanlagen und Schutzeinrichtungen(Schutzeinrichtungen (außer 0300-0390, 3280 und 9840-9880, Tank-überwachungsgeräte (außer 6600-6690 und 9800-9830))",9890,"8","0800"]
["99000500","Ausrüstung allg.","Ausrüstung allgemein (für Grundstü-cke und Gebäude, außer 9000-9890)(Abdeckplanen, Schneeräumgeräte (Handgeräte), Streugutbehälter)",9900,"5","0500"]
["99101700","Tierställe","Tierställe, Terrarien, Aquarien, Vogelkäfige (Stallanlagen, Tierkäfige)",9910,"17","1700"]
["99200600","Gartengeräte","Gartengeräte, transportable Gewächs-häuser(Fräsen, Großflächenmäher)",9920,"6","0600"]
["99301000","Garageneinrichtungen","Garageneinrichtung, Autowaschanla-gen",9930,"10","1000"]
["99401400","Heizöltanks","Tanks für Heizöl und Kraftstoffe(Zapfsäulen für Kraftstoffe)",9940,"14","1400"]
["99501000","Müllbehälter u.-anlagen","Müllbehälter und -anlagen, Schrott-verwertungsanlagen(Abfallbehälter (außer 0350 für radio-aktives Material), Altpapierpressen, Schrottverarbeitungsgeräte und -anlagen (außer 1000-1020, Pressen 2130 und Schmelzöfen 8420))",9950,"10",1000]
["99601300","Verpackungsgeräte","Verpackungsgeräte (Versand-)",9960,"13","1300"]
["99701000","Fahrradständer","Fahrradständer, Fahnenmasten, Wäschepfähle",9970,"10","1000"]
["99802000","Waffen","Waffen(Jagdwaffen, Munition, Signalpisto-len, Leuchtpistolen)",9980,"20","2000"]